Workbook

Sheet Import

Sheet Datasheet
A1: Put here the Absorbances (B6 - M13) | G1: PLA tredecim V01Sep2018 | AA1: S01 | AB1: 0.003125 | AC1: 1524 | AD1: 1596
A2: If the data are in ASCII then: File, open, select in 'files of type' "text files" and import the data. Select the proper delimiter to get every absorbtion in a separate cell. | AA2: S01 | AB2: 0.00625 | AC2: 1181 | AD2: 1197
A3: Then select the data, press copy and return to this sheet. Put the cursor in cell B6 and press paste. | AA3: S01 | AB3: 0.0125 | AC3: 938 | AD3: 947
A4: Absorbance matrix | Q4: If your data are in 8x12 format, paste them here and press Transpose | AA4: S01 | AB4: 0.025 | AC4: 629 | AD4: 645
B5: 1 | C5: 2 | D5: 3 | E5: 4 | F5: 5 | G5: 6 | H5: 7 | I5: 8 | J5: 9 | K5: 10 | L5: 11 | M5: 12 | Q5: A | R5: B | S5: C | T5: D | U5: E | V5: F | W5: G | X5: H | AA5: S01 | AB5: 0.05 | AC5: 434 | AD5: 469
A6: A | B6: 259 | C6: 434 | D6: 645 | E6: 938 | F6: 1181 | G6: 1524 | H6: 534 | I6: 755 | J6: 1069 | K6: 1090 | L6: 1607 | M6: 1825 | P6: 1 | AA6: S01 | AB6: 0.1 | AC6: 259 | AD6: 268
A7: B | B7: 251 | C7: 475 | D7: 628 | E7: 923 | F7: 1230 | G7: 1428 | H7: 479 | I7: 689 | J7: 968 | K7: 1326 | L7: 1505 | M7: 1969 | P7: 2 | AA7: S02 | AB7: 0.003125 | AC7: 1428 | AD7: 1555
A8: C | B8: 250 | C8: 462 | D8: 600 | E8: 953 | F8: 1283 | G8: 1454 | H8: 508 | I8: 693 | J8: 924 | K8: 1261 | L8: 1368 | M8: 1795 | P8: 3 | AA8: S02 | AB8: 0.00625 | AC8: 1230 | AD8: 1278
A9: D | B9: 253 | C9: 461 | D9: 590 | E9: 900 | F9: 1188 | G9: 1516 | H9: 554 | I9: 733 | J9: 989 | K9: 1126 | L9: 1541 | M9: 1568 | P9: 4 | AA9: S02 | AB9: 0.0125 | AC9: 923 | AD9: 970
A10: E | B10: 273 | C10: 476 | D10: 674 | E10: 970 | F10: 1278 | G10: 1555 | H10: 547 | I10: 682 | J10: 936 | K10: 1322 | L10: 1560 | M10: 1780 | P10: 5 | AA10: S02 | AB10: 0.025 | AC10: 628 | AD10: 674
A11: F | B11: 268 | C11: 469 | D11: 629 | E11: 947 | F11: 1197 | G11: 1596 | H11: 556 | I11: 748 | J11: 1012 | K11: 1461 | L11: 1529 | M11: 1781 | P11: 6 | AA11: S02 | AB11: 0.05 | AC11: 475 | AD11: 476
A12: G | B12: 266 | C12: 463 | D12: 681 | E12: 884 | F12: 1177 | G12: 1425 | H12: 530 | I12: 749 | J12: 1068 | K12: 1306 | L12: 1653 | M12: 1931 | P12: 7 | AA12: S02 | AB12: 0.1 | AC12: 251 | AD12: 273
A13: H | B13: 294 | C13: 511 | D13: 687 | E13: 956 | F13: 1333 | G13: 1605 | H13: 543 | I13: 685 | J13: 928 | K13: 1283 | L13: 1605 | M13: 1842 | P13: 8 | AA13: S03 | AB13: 0.003125 | AC13: 1454 | AD13: 1605
P14: 9 | AA14: S03 | AB14: 0.00625 | AC14: 1283 | AD14: 1333
P15: 10 | AA15: S03 | AB15: 0.0125 | AC15: 953 | AD15: 956
P16: 11 | AA16: S03 | AB16: 0.025 | AC16: 600 | AD16: 687
A17: Enter here the positions of samples. Use S01 to S13 for maximal 13 samples and SS for the position of the standard. | P17: 12 | AA17: S03 | AB17: 0.05 | AC17: 462 | AD17: 511
A18: Sample position matrix | E18: Use the abbreviations as entered in column P21 - P 34 | AA18: S03 | AB18: 0.1 | AC18: 250 | AD18: 294
AA19: S04 | AB19: 0.003125 | AC19: 1780 | AD19: 1969
B20: SS = standard | E20: S01 - S13 for samples | P20: ID | S20: Name / number | U20: Potency | V20: Unit | AA20: S04 | AB20: 0.00625 | AC20: 1505 | AD20: 1560
B21: 1 | C21: 2 | D21: 3 | E21: 4 | F21: 5 | G21: 6 | H21: 7 | I21: 8 | J21: 9 | K21: 10 | L21: 11 | M21: 12 | P21: SS | Q21: std | U21: 12 | V21: AE/mL | Y21: This name and potency will appear on all sheets | AA21: S04 | AB21: 0.0125 | AC21: 1322 | AD21: 1326
A22: A | B22: S01 | C22: S01 | D22: S01 | E22: S01 | F22: S01 | G22: S01 | H22: S05 | I22: S05 | J22: S05 | K22: S05 | L22: S05 | M22: S05 | P22: S01 | Q22: N0012-18-000001 | U22: 11.23934536 | V22: AE/mL | AA22: S04 | AB22: 0.025 | AC22: 936 | AD22: 968
A23: B | B23: S02 | C23: S02 | D23: S02 | E23: S02 | F23: S02 | G23: S02 | H23: S04 | I23: S04 | J23: S04 | K23: S04 | L23: S04 | M23: S04 | P23: S02 | Q23: N0012-18-000002 | U23: 11.03678719 | V23: AE/mL | AA23: S04 | AB23: 0.05 | AC23: 682 | AD23: 689
A24: C | B24: S03 | C24: S03 | D24: S03 | E24: S03 | F24: S03 | G24: S03 | H24: S07 | I24: S07 | J24: S07 | K24: S07 | L24: S07 | M24: S07 | P24: S03 | Q24: N0012-18-000003 | U24: 10.48820198 | V24: AE/mL | AA24: S04 | AB24: 0.1 | AC24: 479 | AD24: 547
A25: D | B25: SS | C25: SS | D25: SS | E25: SS | F25: SS | G25: SS | H25: S06 | I25: S06 | J25: S06 | K25: S06 | L25: S06 | M25: S06 | P25: S04 | Q25: N0012-18-000004 | U25: 4.978112728 | V25: AE/mL | AA25: S05 | AB25: 0.003125 | AC25: 1781 | AD25: 1825
A26: E | B26: S02 | C26: S02 | D26: S02 | E26: S02 | F26: S02 | G26: S02 | H26: S04 | I26: S04 | J26: S04 | K26: S04 | L26: S04 | M26: S04 | P26: S05 | Q26: N0012-18-000005 | U26: 4.572934666 | V26: AE/mL | AA26: S05 | AB26: 0.00625 | AC26: 1529 | AD26: 1607
A27: F | B27: S01 | C27: S01 | D27: S01 | E27: S01 | F27: S01 | G27: S01 | H27: S05 | I27: S05 | J27: S05 | K27: S05 | L27: S05 | M27: S05 | P27: S06 | Q27: N0012-18-000006 | U27: 4.76500795 | V27: AE/mL | AA27: S05 | AB27: 0.0125 | AC27: 1090 | AD27: 1461
A28: G | B28: SS | C28: SS | D28: SS | E28: SS | F28: SS | G28: SS | H28: S06 | I28: S06 | J28: S06 | K28: S06 | L28: S06 | M28: S06 | P28: S07 | Q28: N0012-18-000007 | U28: 5.229649855 | V28: AE/mL | AA28: S05 | AB28: 0.025 | AC28: 1012 | AD28: 1069
A29: H | B29: S03 | C29: S03 | D29: S03 | E29: S03 | F29: S03 | G29: S03 | H29: S07 | I29: S07 | J29: S07 | K29: S07 | L29: S07 | M29: S07 | P29: S08 | AA29: S05 | AB29: 0.05 | AC29: 748 | AD29: 755
P30: S09 | AA30: S05 | AB30: 0.1 | AC30: 534 | AD30: 556
P31: S10 | AA31: S06 | AB31: 0.003125 | AC31: 1568 | AD31: 1931
P32: S11 | AA32: S06 | AB32: 0.00625 | AC32: 1541 | AD32: 1653
A33: Enter here the dilutions of the samples (B36 - M43). Enter a dilution of 1/20 as =1/20 or 0.05 | P33: S12 | AA33: S06 | AB33: 0.0125 | AC33: 1126 | AD33: 1306
A34: Dilution matrix | P34: S13 | AA34: S06 | AB34: 0.025 | AC34: 989 | AD34: 1068
B35: 1 | C35: 2 | D35: 3 | E35: 4 | F35: 5 | G35: 6 | H35: 7 | I35: 8 | J35: 9 | K35: 10 | L35: 11 | M35: 12 | AA35: S06 | AB35: 0.05 | AC35: 733 | AD35: 749
A36: A | B36: 0.1 | C36: 0.05 | D36: 0.025 | E36: 0.0125 | F36: 0.00625 | G36: 0.003125 | H36: 0.1 | I36: 0.05 | J36: 0.025 | K36: 0.0125 | L36: 0.00625 | M36: 0.003125 | P36: Date: | Q36: =TODAY() -> 2018-12-14 | Y36: This date and the text below will appear on all sheets | AA36: S06 | AB36: 0.1 | AC36: 530 | AD36: 554
A37: B | B37: 0.1 | C37: 0.05 | D37: 0.025 | E37: 0.0125 | F37: 0.00625 | G37: 0.003125 | H37: 0.1 | I37: 0.05 | J37: 0.025 | K37: 0.0125 | L37: 0.00625 | M37: 0.003125 | P37: Lot number: | S37: - | Y37: This tekst will appear in the Cell D24 and E24 | AA37: S07 | AB37: 0.003125 | AC37: 1795 | AD37: 1842
A38: C | B38: 0.1 | C38: 0.05 | D38: 0.025 | E38: 0.0125 | F38: 0.00625 | G38: 0.003125 | H38: 0.1 | I38: 0.05 | J38: 0.025 | K38: 0.0125 | L38: 0.00625 | M38: 0.003125 | P38: Name technician: | S38: - | Y38: This tekst will appear in the Cell D25 and E25 | AA38: S07 | AB38: 0.00625 | AC38: 1368 | AD38: 1605
A39: D | B39: 0.1 | C39: 0.05 | D39: 0.025 | E39: 0.0125 | F39: 0.00625 | G39: 0.003125 | H39: 0.1 | I39: 0.05 | J39: 0.025 | K39: 0.0125 | L39: 0.00625 | M39: 0.003125 | AA39: S07 | AB39: 0.0125 | AC39: 1261 | AD39: 1283
A40: E | B40: 0.1 | C40: 0.05 | D40: 0.025 | E40: 0.0125 | F40: 0.00625 | G40: 0.003125 | H40: 0.1 | I40: 0.05 | J40: 0.025 | K40: 0.0125 | L40: 0.00625 | M40: 0.003125 | AA40: S07 | AB40: 0.025 | AC40: 924 | AD40: 928
A41: F | B41: 0.1 | C41: 0.05 | D41: 0.025 | E41: 0.0125 | F41: 0.00625 | G41: 0.003125 | H41: 0.1 | I41: 0.05 | J41: 0.025 | K41: 0.0125 | L41: 0.00625 | M41: 0.003125 | AA41: S07 | AB41: 0.05 | AC41: 685 | AD41: 693
A42: G | B42: 0.1 | C42: 0.05 | D42: 0.025 | E42: 0.0125 | F42: 0.00625 | G42: 0.003125 | H42: 0.1 | I42: 0.05 | J42: 0.025 | K42: 0.0125 | L42: 0.00625 | M42: 0.003125 | AA42: S07 | AB42: 0.1 | AC42: 508 | AD42: 543
A43: H | B43: 0.1 | C43: 0.05 | D43: 0.025 | E43: 0.0125 | F43: 0.00625 | G43: 0.003125 | H43: 0.1 | I43: 0.05 | J43: 0.025 | K43: 0.0125 | L43: 0.00625 | M43: 0.003125 | AA43: SS | AB43: 0.003125 | AC43: 1425 | AD43: 1516
AA44: SS | AB44: 0.00625 | AC44: 1177 | AD44: 1188
AA45: SS | AB45: 0.0125 | AC45: 884 | AD45: 900
A46: Original absorbances | AA46: SS | AB46: 0.025 | AC46: 590 | AD46: 681
B47: 1 | C47: 2 | D47: 3 | E47: 4 | F47: 5 | G47: 6 | H47: 7 | I47: 8 | J47: 9 | K47: 10 | L47: 11 | M47: 12 | AA47: SS | AB47: 0.05 | AC47: 461 | AD47: 463
A48: A | B48: 259 | C48: 434 | D48: 645 | E48: 938 | F48: 1181 | G48: 1524 | H48: 534 | I48: 755 | J48: 1069 | K48: 1090 | L48: 1607 | M48: 1825 | AA48: SS | AB48: 0.1 | AC48: 253 | AD48: 266
A49: B | B49: 251 | C49: 475 | D49: 628 | E49: 923 | F49: 1230 | G49: 1428 | H49: 479 | I49: 689 | J49: 968 | K49: 1326 | L49: 1505 | M49: 1969
A50: C | B50: 250 | C50: 462 | D50: 600 | E50: 953 | F50: 1283 | G50: 1454 | H50: 508 | I50: 693 | J50: 924 | K50: 1261 | L50: 1368 | M50: 1795
A51: D | B51: 253 | C51: 461 | D51: 590 | E51: 900 | F51: 1188 | G51: 1516 | H51: 554 | I51: 733 | J51: 989 | K51: 1126 | L51: 1541 | M51: 1568
A52: E | B52: 273 | C52: 476 | D52: 674 | E52: 970 | F52: 1278 | G52: 1555 | H52: 547 | I52: 682 | J52: 936 | K52: 1322 | L52: 1560 | M52: 1780
A53: F | B53: 268 | C53: 469 | D53: 629 | E53: 947 | F53: 1197 | G53: 1596 | H53: 556 | I53: 748 | J53: 1012 | K53: 1461 | L53: 1529 | M53: 1781
A54: G | B54: 266 | C54: 463 | D54: 681 | E54: 884 | F54: 1177 | G54: 1425 | H54: 530 | I54: 749 | J54: 1068 | K54: 1306 | L54: 1653 | M54: 1931
A55: H | B55: 294 | C55: 511 | D55: 687 | E55: 956 | F55: 1333 | G55: 1605 | H55: 543 | I55: 685 | J55: 928 | K55: 1283 | L55: 1605 | M55: 1842
B58: .
B61: 1 | C61: 2 | D61: 3 | E61: 4 | F61: 5 | G61: 6 | H61: 7 | I61: 8 | J61: 9 | K61: 10 | L61: 11 | M61: 12
A62: A
A63: B | D63: l | E63: l | F63: l | H63: l | I63: l
A64: C | D64: l | H64: l | J64: l
A65: D | D65: l | E65: l | H65: l | J65: l
A66: E | D66: l | E66: l | H66: l | J66: l
A67: F | D67: l | H67: l | J67: l
A68: G | D68: l | E68: l | F68: l | H68: l | I68: l
A69: H

Sheet Optimize
B2: =Sample1!M4 -> Standard | C2: =Sample1!N4 -> l | D2: =Sample1!O4 -> l | E2: =Sample1!P4 -> l | F2: =Sample1!Q4 -> l | G2: =Sample1!R4 -> l | H2: =Sample1!S4 -> l
B4: =Sample1!M6 -> Dose | C4: =Sample1!N6 -> Respons
C5: =Sample1!N7 -> 1 | D5: =Sample1!O7 -> 2 | E5: =Sample1!P7 -> 3 | F5: =Sample1!Q7 -> 4 | G5: =Sample1!R7 -> 5 | H5: =Sample1!S7 -> 6 | I5: Average
B14: Log Dose | C14: Logit response
F15: Correlation
F16: Loopcount
F17: Bmax
F18: Minimum

Sheet Graphs

Sheet Sample1
U1: V 1.0
D2: PLA tredecim V01Sep2018
AC3: aantal doses standaard | AD3: =COUNT(AW17:AW23)-COUNTIF(AW17:AW23,"=0") -> 6
D4: Sample | E4: l | F4: l | G4: l | H4: l | I4: l | J4: l | M4: Standard | N4: l | O4: l | P4: l | Q4: l | R4: l | S4: l | AC4: aantal doses test | AD4: =COUNT(AW26:AW32)-COUNTIF(AW26:AW32,"=0") -> 6
AC5: aantal responses standaard | AD5: =COUNTIF(AP17:AU23,">0") -> 12
D6: Dose | E6: Response | M6: Dose | N6: Respons | AC6: aantal responses test | AD6: =COUNTIF(AP26:AU32,">0") -> 12
E7: 1 | F7: 2 | G7: 3 | H7: 4 | I7: 5 | J7: 6 | N7: 1 | O7: 2 | P7: 3 | Q7: 4 | R7: 5 | S7: 6 | AC7: som responses standaard | AD7: =SUM(AP17:AU23) -> 9804
C8: 1 | D8: 0.003125 | E8: 1524 | F8: 1596 | L8: 1 | M8: 0.003125 | N8: 1425 | O8: 1516 | AC8: som responses test | AD8: =SUM(AP26:AU32) -> 10087
C9: 2 | D9: 0.00625 | E9: 1181 | F9: 1197 | L9: 2 | M9: 0.00625 | N9: 1177 | O9: 1188 | AC9: som Xsi | AD9: =SUM(AH17:AH23) -> -21.03089987
C10: 3 | D10: 0.0125 | E10: 938 | F10: 947 | L10: 3 | M10: 0.0125 | N10: 884 | O10: 900 | AC10: som Xti | AD10: =SUM(AH26:AH32) -> -21.03089987
C11: 4 | D11: 0.025 | E11: 629 | F11: 645 | L11: 4 | M11: 0.025 | N11: 590 | O11: 681 | AC11: XSm | AD11: =AD9/AD5 -> -1.752574989
C12: 5 | D12: 0.05 | E12: 434 | F12: 469 | L12: 5 | M12: 0.05 | N12: 461 | O12: 463 | AC12: XTm | AD12: =AD10/AD6 -> -1.752574989
C13: 6 | D13: 0.1 | E13: 259 | F13: 268 | L13: 6 | M13: 0.1 | N13: 253 | O13: 266 | AC13: Ysm | AD13: =AD7/AD5 -> 817
C14: 7 | L14: 7 | AC14: Ytm | AD14: =AD8/AD6 -> 840.5833333
AC15: SxxS: | AD15: =SUM(AI17:AI23) -> 3.17166704
AC16: SxxT: | AD16: =SUM(AI26:AI32) -> 3.17166704 | AF16: ni | AG16: ysi | AH16: Xsi | AI16: SxxSi | AJ16: SyySi | AK16: SxySi | AL16: yi^2 | AO16: Dose | AP16: Responses | AV16: Regression | AW16: Dose(log)
AC17: SxyS: | AD17: =SUM(AK17:AK23) -> -2550.627153 | AF17: =COUNTIF(AP17:AU17,">0") -> 2 | AG17: =SUM(AP17:AU17) -> 2941 | AH17: =AF17*AW17 -> -5.010299957 | AI17: =AF17*(AW17-$AD$11)^2 -> 1.132738229 | AJ17: =IF(AF17=0,0,+AF17*(AG17/AF17-$AD$13)^2) -> 854124.5 | AK17: =IF(AF17=0,0,+AF17*(AG17/AF17-$AD$13)*(AW17-$AD$11)) -> -983.6155108 | AL17: =AP17^2+AQ17^2+AR17^2+AS17^2+AT17^2+AU17^2 -> 4328881 | AN17: Standard | AO17: 0.003125 | AP17: 1425 | AQ17: 1516 | AV17: =IF(AO17>0,AW17*$AD$45+$AD$46,"") -> 1422.214286 | AW17: =IF(AO17>0,LOG(AO17),"") -> -2.505149978
D18: Sample: | E18: N0012-18-000001 | M18: Standard name: | N18: std | AC18: SxyT: | AD18: =SUM(AK26:AK32) -> -2709.420476 | AF18: =COUNTIF(AP18:AU18,">0") -> 2 | AG18: =SUM(AP18:AU18) -> 2365 | AH18: -4.408239965 | AI18: 0.4077857623 | AJ18: 267180.5 | AK18: -330.0793902 | AL18: =AP18^2+AQ18^2+AR18^2+AS18^2+AT18^2+AU18^2 -> 2796673 | AO18: 0.00625 | AP18: 1177 | AQ18: 1188 | AV18: 1180.128571 | AW18: -2.204119983
D19: Potency: | E19: =AC53*N19 -> 11.23934536 | F19: =O19 -> AE/mL | M19: Potency: | N19: 12 | O19: AE/mL | AC19: SyyS: | AD19: =SUM(AJ17:AJ23) -> 2072102 | AF19: 2 | AG19: 1784 | AH19: -3.806179974 | AI19: 0.04530952914 | AJ19: 11250 | AK19: -22.57724967 | AL19: 1591456 | AO19: 0.0125 | AP19: 884 | AQ19: 900 | AV19: 938.0428571 | AW19: -1.903089987
D20: CI: | E20: ="("&TEXT(MIN(AD54:AE54),"0.#0")&" - "&TEXT(MAX(AD54:AE54),"0.#0) ")&"= +/-" -> (10.39 - 12.16) = +/- | G20: =ABS((AD54-AE54)/(2*E19)) -> 0.07857138236 | AC20: SyyT: | AD20: =SUM(AJ26:AJ32) -> 2350397.417 | AF20: 2 | AG20: 1271 | AH20: -3.204119983 | AI20: 0.04530952914 | AJ20: 65884.5 | AK20: -54.63694421 | AL20: 811861 | AO20: 0.025 | AP20: 590 | AQ20: 681 | AV20: 695.9571429 | AW20: -1.602059991
N21: F-Ratio | O21: Limits | AC21: B: | AD21: =(AD17+AD18)/(AD15+AD16) -> -829.2244367 | AF21: 2 | AG21: 924 | AH21: -2.602059991 | AI21: 0.4077857623 | AJ21: 252050 | AK21: -320.5969454 | AL21: 426890 | AO21: 0.05 | AP21: 461 | AQ21: 463 | AV21: 453.8714286 | AW21: -1.301029996
D22: Date: | E22: 12/14/2018 | L22: Non-parallelism | N22: =AG37 -> 3.943051988 | O22: =AH37 -> 4.747225347 | AC22: t | AD22: =TINV(0.05,AE41) -> 2.17881283 | AF22: 2 | AG22: 519 | AH22: -2 | AI22: 1.132738229 | AJ22: 621612.5 | AK22: -839.1211129 | AL22: 134765 | AO22: 0.1 | AP22: 253 | AQ22: 266 | AV22: 211.7857143 | AW22: -1
D23: Sample name: | E23: N0012-18-000001 | L23: Non linearity (St) | N23: =AG38 -> 5.18530511 | O23: 3.259166727 | AC23: s | AD23: =SQRT(AF41) -> 31.75098424 | AF23: 0 | AG23: 0 | AH23: 0 | AI23: 0 | AJ23: 0 | AK23: 0 | AL23: 0
D24: Lot number: | E24: - | L24: Non linearity (Sa) | N24: 8.891395507 | O24: 3.259166727 | AC24: g | AD24: =AD22^2*AD23^2/(AD21^2*(AD15+AD16)) -> 0.001097216838
D25: Name technician: | E25: - | L25: Relative Slope | N25: =AD48/AD45 -> 1.06225658 | O25: 0.90-1.10 | AF25: mi | AG25: yti | AH25: Xti | AI25: SxxTi | AJ25: SyyTi | AK25: SxyTi | AL25: yi^2 | AV25: Regression | AW25: Dose(log)
AC26: var(P) | AD26: =(AD23^2/AD21^2)*((1/AD5+1/AD6)+(AD28-AD11+AD12)^2/(AD15+AD16)) -> 0.0002445406645 | AF26: =COUNTIF(AP26:AU26,">0") -> 2 | AG26: =SUM(AP26:AU26) -> 3120 | AH26: =AF26*AW26 -> -5.010299957 | AI26: =AF26*(AW26-$AD$12)^2 -> 1.132738229 | AJ26: =IF(AF26=0,0,+AF26*(AG26/AF26-$AD$14)^2) -> 1035120.681 | AK26: =IF(AF26=0,0,+AF26*(AG26/AF26-$AD$14)*(AW26-$AD$12)) -> -1082.82998 | AL26: =AP26^2+AQ26^2+AR26^2+AS26^2+AT26^2+AU26^2 -> 4869792 | AN26: Test sample | AO26: 0.003125 | AP26: 1524 | AQ26: 1596 | AV26: =IF(AO26>0,AW26*$AD$48+$AD$49,"") -> 1483.47619 | AW26: =IF(AO26>0,LOG(AO26),"") -> -2.505149978
D27: Italic or Bold = Delete point. Press button Recalculate | AC27: limit | AD27: =(AD23*AD22/AD21)*SQRT((1-AD24)*(1/AD6+1/AD5)+(AD28-AD11+AD12)^2/(AD15+AD16)) -> -0.03405314768 | AF27: =COUNTIF(AP27:AU27,">0") -> 2 | AG27: 2378 | AH27: -4.408239965 | AI27: 0.4077857623 | AJ27: 242788.3472 | AK27: -314.651603 | AL27: 2827570 | AO27: 0.00625 | AP27: 1181 | AQ27: 1197 | AV27: 1226.319048 | AW27: -2.204119983
AC28: M | AD28: =$AD$11-$AD$12-(AD13-AD14)/AD21 -> -0.02844022956 | AF28: 2 | AG28: 1885 | AH28: -3.806179974 | AI28: 0.04530952914 | AJ28: 20774.01389 | AK28: -30.67997372 | AL28: 1776653 | AO28: 0.0125 | AP28: 938 | AQ28: 947 | AV28: 969.1619048 | AW28: -1.903089987
AC29: Ml | AD29: =$AD$11-$AD$12+($AD$28-$AD$11+$AD$12+$AD$27)/(1-$AD$24) -> -0.06256202134 | AF29: 2 | AG29: 1274 | AH29: -3.204119983 | AI29: 0.04530952914 | AJ29: 82892.34722 | AK29: -61.28468995 | AL29: 811666 | AO29: 0.025 | AP29: 629 | AQ29: 645 | AV29: 712.0047619 | AW29: -1.602059991
AC30: Mu | AD30: =$AD$11-$AD$12+($AD$28-$AD$11+$AD$12-$AD$27)/(1-$AD$24) -> 0.005619083478 | AF30: 2 | AG30: 903 | AH30: -2.602059991 | AI30: 0.4077857623 | AJ30: 302771.6806 | AK30: -351.3772624 | AL30: 408317 | AO30: 0.05 | AP30: 434 | AQ30: 469 | AV30: 454.847619 | AW30: -1.301029996
AF31: 2 | AG31: 527 | AH31: -2 | AI31: 1.132738229 | AJ31: 666050.3472 | AK31: -868.5969667 | AL31: 138905 | AO31: 0.1 | AP31: 259 | AQ31: 268 | AV31: 197.6904762 | AW31: -1
AF32: 0 | AG32: 0 | AH32: 0 | AI32: 0 | AJ32: 0 | AK32: 0 | AL32: 0
AC34: Source of variation | AD34: S.S. | AE34: DF | AF34: M.S. | AG34: F RATIO | AH34: F 0.95
AC35: Preparations | AD35: =AD7^2/AD5+AD8^2/AD6-(AD7+AD8)^2/(AD5+AD6) -> 3337.041667 | AE35: 1 | AF35: =AD35 -> 3337.041667 | AG35: =AF35/$AF$41 -> 3.310146725
AC36: Regression | AD36: =(AD17+AD18)^2/(AD15+AD16) -> 4361760.032 | AE36: 1 | AF36: =AD36 -> 4361760.032 | AG36: =AF36/$AF$41 -> 4326.606356
AC37: Non-parallelism | AD37: =(AD17)^2/AD15+AD18^2/AD16-(AD17+AD18)^2/(AD15+AD16) -> 3975.089286 | AE37: 1 | AF37: =AD37 -> 3975.089286 | AG37: =AF37/$AF$41 -> 3.943051988 | AH37: =FINV(0.05,AE37,AE$41) -> 4.747225347
AC38: Non-linearity (s) | AD38: =AD19-AD17^2/AD15 -> 20909.74286 | AE38: =AD3-2 -> 4 | AF38: =AD38/AE38 -> 5227.435714 | AG38: =AF38/$AF$41 -> 5.18530511 | AH38: =FINV(0.05,AE38,AE$41) -> 3.259166727
AC39: Non-linearity (t) | AD39: =AD20-AD18^2/AD16 -> 35854.55238 | AE39: =AD4-2 -> 4 | AF39: =AD39/AE39 -> 8963.638095 | AG39: =AF39/$AF$41 -> 8.891395507 | AH39: =FINV(0.05,AE39,AE$41) -> 3.259166727
K41: 5 | AC41: Residual Error | AD41: =AD43-AD35-AD36-AD37-AD38-AD39 -> 12097.5 | AE41: =AE43-AE35-AE36-AE37-AE38-AE39 -> 12 | AF41: =AD41/AE41 -> 1008.125
AC43: Total | AD43: =SUM(AL17:AL32)-(AD7+AD8)^2/(AD5+AD6) -> 4437933.958 | AE43: =(AD6+AD5)-1 -> 23
AC45: Slope standard | AD45: =AD17/AD15 -> -804.1913357
AC46: Intercept standard | AD46: =AD13-AD45*AD11 -> -592.4056214
AC48: Slope test | AD48: =AD18/AD16 -> -854.2575377
AC49: Intercept test | AD49: =AD14-AD48*AD12 -> -656.5670615
AD51: Limits
AC52: Relative potency | AD52: Upper | AE52: Lower
AC53: =10^AD28 -> 0.9366121137 | AD53: =10^AD30 -> 1.013022481 | AE53: =10^AD29 -> 0.8658406643
AC54: Potency | AD54: =$AD$53*$N$19 -> 12.15626978 | AE54: =$AE$53*$N$19 -> 10.39008797
AC55: Deviation | AD55: =(AD53-AC53)/AC53 -> 0.0815816564 | AE55: =(AE53-AC53)/AC53 -> -0.07556110832

Sheet Sample2
U1: V 1.0
D2: PLA tredecim V01Sep2018
AC3: aantal doses standaard | AD3: =COUNT(AW17:AW23)-COUNTIF(AW17:AW23,"=0") -> 6
D4: Sample | E4: l | F4: l | G4: l | H4: l | I4: l | J4: l | M4: Standard | N4: l | O4: l | P4: l | Q4: l | R4: l | S4: l | AC4: aantal doses test | AD4: =COUNT(AW26:AW32)-COUNTIF(AW26:AW32,"=0") -> 6
AC5: aantal responses standaard | AD5: =COUNTIF(AP17:AU23,">0") -> 12
D6: Dose | E6: Response | M6: Dose | N6: Respons | AC6: aantal responses test | AD6: =COUNTIF(AP26:AU32,">0") -> 12
E7: 1 | F7: 2 | G7: 3 | H7: 4 | I7: 5 | J7: 6 | N7: 1 | O7: 2 | P7: 3 | Q7: 4 | R7: 5 | S7: 6 | AC7: som responses standaard | AD7: =SUM(AP17:AU23) -> 9804
C8: 1 | D8: 0.003125 | E8: 1428 | F8: 1555 | L8: 1 | M8: 0.003125 | N8: 1425 | O8: 1516 | AC8: som responses test | AD8: =SUM(AP26:AU32) -> 10161
C9: 2 | D9: 0.00625 | E9: 1230 | F9: 1278 | L9: 2 | M9: 0.00625 | N9: 1177 | O9: 1188 | AC9: som Xsi | AD9: =SUM(AH17:AH23) -> -21.03089987
C10: 3 | D10: 0.0125 | E10: 923 | F10: 970 | L10: 3 | M10: 0.0125 | N10: 884 | O10: 900 | AC10: som Xti | AD10: =SUM(AH26:AH32) -> -21.03089987
C11: 4 | D11: 0.025 | E11: 628 | F11: 674 | L11: 4 | M11: 0.025 | N11: 590 | O11: 681 | AC11: XSm | AD11: =AD9/AD5 -> -1.752574989
C12: 5 | D12: 0.05 | E12: 475 | F12: 476 | L12: 5 | M12: 0.05 | N12: 461 | O12: 463 | AC12: XTm | AD12: =AD10/AD6 -> -1.752574989
C13: 6 | D13: 0.1 | E13: 251 | F13: 273 | L13: 6 | M13: 0.1 | N13: 253 | O13: 266 | AC13: Ysm | AD13: =AD7/AD5 -> 817
C14: 7 | L14: 7 | AC14: Ytm | AD14: =AD8/AD6 -> 846.75
AC15: SxxS: | AD15: =SUM(AI17:AI23) -> 3.17166704
AC16: SxxT: | AD16: =SUM(AI26:AI32) -> 3.17166704 | AF16: ni | AG16: ysi | AH16: Xsi | AI16: SxxSi | AJ16: SyySi | AK16: SxySi | AL16: yi^2 | AO16: Dose | AP16: Responses | AV16: Regression | AW16: Dose(log)
AC17: SxyS: | AD17: =SUM(AK17:AK23) -> -2550.627153 | AF17: =COUNTIF(AP17:AU17,">0") -> 2 | AG17: =SUM(AP17:AU17) -> 2941 | AH17: =AF17*AW17 -> -5.010299957 | AI17: =AF17*(AW17-$AD$11)^2 -> 1.132738229 | AJ17: =IF(AF17=0,0,+AF17*(AG17/AF17-$AD$13)^2) -> 854124.5 | AK17: =IF(AF17=0,0,+AF17*(AG17/AF17-$AD$13)*(AW17-$AD$11)) -> -983.6155108 | AL17: =AP17^2+AQ17^2+AR17^2+AS17^2+AT17^2+AU17^2 -> 4328881 | AN17: Standard | AO17: 0.003125 | AP17: 1425 | AQ17: 1516 | AV17: =IF(AO17>0,AW17*$AD$45+$AD$46,"") -> 1422.214286 | AW17: =IF(AO17>0,LOG(AO17),"") -> -2.505149978
D18: Sample: | E18: N0012-18-000002 | M18: Standard name: | N18: std | AC18: SxyT: | AD18: =SUM(AK26:AK32) -> -2642.591817 | AF18: =COUNTIF(AP18:AU18,">0") -> 2 | AG18: =SUM(AP18:AU18) -> 2365 | AH18: -4.408239965 | AI18: 0.4077857623 | AJ18: 267180.5 | AK18: -330.0793902 | AL18: =AP18^2+AQ18^2+AR18^2+AS18^2+AT18^2+AU18^2 -> 2796673 | AO18: 0.00625 | AP18: 1177 | AQ18: 1188 | AV18: 1180.128571 | AW18: -2.204119983
D19: Potency: | E19: =AC53*N19 -> 11.03678719 | F19: =O19 -> AE/mL | M19: Potency: | N19: 12 | O19: AE/mL | AC19: SyyS: | AD19: =SUM(AJ17:AJ23) -> 2072102 | AF19: 2 | AG19: 1784 | AH19: -3.806179974 | AI19: 0.04530952914 | AJ19: 11250 | AK19: -22.57724967 | AL19: 1591456 | AO19: 0.0125 | AP19: 884 | AQ19: 900 | AV19: 938.0428571 | AW19: -1.903089987
D20: CI: | E20: ="("&TEXT(MIN(AD54:AE54),"0.#0")&" - "&TEXT(MAX(AD54:AE54),"0.#0) ")&"= +/-" -> (9.96 - 12.23) = +/- | G20: =ABS((AD54-AE54)/(2*E19)) -> 0.102910365 | AC20: SyyT: | AD20: =SUM(AJ26:AJ32) -> 2219164.75 | AF20: 2 | AG20: 1271 | AH20: -3.204119983 | AI20: 0.04530952914 | AJ20: 65884.5 | AK20: -54.63694421 | AL20: 811861 | AO20: 0.025 | AP20: 590 | AQ20: 681 | AV20: 695.9571429 | AW20: -1.602059991
N21: F-Ratio | O21: Limits | AC21: B: | AD21: =(AD17+AD18)/(AD15+AD16) -> -818.689179 | AF21: 2 | AG21: 924 | AH21: -2.602059991 | AI21: 0.4077857623 | AJ21: 252050 | AK21: -320.5969454 | AL21: 426890 | AO21: 0.05 | AP21: 461 | AQ21: 463 | AV21: 453.8714286 | AW21: -1.301029996
D22: Date: | E22: 12/14/2018 | L22: Non-parallelism | N22: =AG37 -> 0.7929362621 | O22: =AH37 -> 4.747225347 | AC22: t | AD22: =TINV(0.05,AE41) -> 2.17881283 | AF22: 2 | AG22: 519 | AH22: -2 | AI22: 1.132738229 | AJ22: 621612.5 | AK22: -839.1211129 | AL22: 134765 | AO22: 0.1 | AP22: 253 | AQ22: 266 | AV22: 211.7857143 | AW22: -1
D23: Sample name: | E23: N0012-18-000002 | L23: Non linearity (St) | N23: =AG38 -> 3.108870205 | O23: 3.259166727 | AC23: s | AD23: =SQRT(AF41) -> 41.00558905 | AF23: 0 | AG23: 0 | AH23: 0 | AI23: 0 | AJ23: 0 | AK23: 0 | AL23: 0
D24: Lot number: | E24: - | L24: Non linearity (Sa) | N24: 2.585782608 | O24: 3.259166727 | AC24: g | AD24: =AD22^2*AD23^2/(AD21^2*(AD15+AD16)) -> 0.001877458183
D25: Name technician: | E25: - | L25: Relative Slope | N25: =AD48/AD45 -> 1.036055706 | O25: 0.90-1.10 | AF25: mi | AG25: yti | AH25: Xti | AI25: SxxTi | AJ25: SyyTi | AK25: SxyTi | AL25: yi^2 | AV25: Regression | AW25: Dose(log)
AC26: var(P) | AD26: =(AD23^2/AD21^2)*((1/AD5+1/AD6)+(AD28-AD11+AD12)^2/(AD15+AD16)) -> 0.0004186382087 | AF26: =COUNTIF(AP26:AU26,">0") -> 2 | AG26: =SUM(AP26:AU26) -> 2983 | AH26: =AF26*AW26 -> -5.010299957 | AI26: =AF26*(AW26-$AD$12)^2 -> 1.132738229 | AJ26: =IF(AF26=0,0,+AF26*(AG26/AF26-$AD$14)^2) -> 831405.125 | AK26: =IF(AF26=0,0,+AF26*(AG26/AF26-$AD$14)*(AW26-$AD$12)) -> -970.4454485 | AL26: =AP26^2+AQ26^2+AR26^2+AS26^2+AT26^2+AU26^2 -> 4457209 | AN26: Test sample | AO26: 0.003125 | AP26: 1428 | AQ26: 1555 | AV26: =IF(AO26>0,AW26*$AD$48+$AD$49,"") -> 1473.785714 | AW26: =IF(AO26>0,LOG(AO26),"") -> -2.505149978
D27: Italic or Bold = Delete point. Press button Recalculate | AC27: limit | AD27: =(AD23*AD22/AD21)*SQRT((1-AD24)*(1/AD6+1/AD5)+(AD28-AD11+AD12)^2/(AD15+AD16)) -> -0.04453811139 | AF27: =COUNTIF(AP27:AU27,">0") -> 2 | AG27: 2508 | AH27: -4.408239965 | AI27: 0.4077857623 | AJ27: 331705.125 | AK27: -367.7833972 | AL27: 3146184 | AO27: 0.00625 | AP27: 1230 | AQ27: 1278 | AV27: 1222.971429 | AW27: -2.204119983
AC28: M | AD28: =$AD$11-$AD$12-(AD13-AD14)/AD21 -> -0.03633857728 | AF28: 2 | AG28: 1893 | AH28: -3.806179974 | AI28: 0.04530952914 | AJ28: 19900.125 | AK28: -30.02774207 | AL28: 1792829 | AO28: 0.0125 | AP28: 923 | AQ28: 970 | AV28: 972.1571429 | AW28: -1.903089987
AC29: Ml | AD29: =$AD$11-$AD$12+($AD$28-$AD$11+$AD$12+$AD$27)/(1-$AD$24) -> -0.08102881688 | AF29: 2 | AG29: 1302 | AH29: -3.204119983 | AI29: 0.04530952914 | AJ29: 76636.125 | AK29: -58.92662165 | AL29: 848660 | AO29: 0.025 | AP29: 628 | AQ29: 674 | AV29: 721.3428571 | AW29: -1.602059991
AC30: Mu | AD30: =$AD$11-$AD$12+($AD$28-$AD$11+$AD$12-$AD$27)/(1-$AD$24) -> 0.008214957345 | AF30: 2 | AG30: 951 | AH30: -2.602059991 | AI30: 0.4077857623 | AJ30: 275653.125 | AK30: -335.2721577 | AL30: 452201 | AO30: 0.05 | AP30: 475 | AQ30: 476 | AV30: 470.5285714 | AW30: -1.301029996
AF31: 2 | AG31: 524 | AH31: -2 | AI31: 1.132738229 | AJ31: 683865.125 | AK31: -880.1364498 | AL31: 137530 | AO31: 0.1 | AP31: 251 | AQ31: 273 | AV31: 219.7142857 | AW31: -1
AF32: 0 | AG32: 0 | AH32: 0 | AI32: 0 | AJ32: 0 | AK32: 0 | AL32: 0
AC34: Source of variation | AD34: S.S. | AE34: DF | AF34: M.S. | AG34: F RATIO | AH34: F 0.95
AC35: Preparations | AD35: =AD7^2/AD5+AD8^2/AD6-(AD7+AD8)^2/(AD5+AD6) -> 5310.375 | AE35: 1 | AF35: =AD35 -> 5310.375 | AG35: =AF35/$AF$41 -> 3.15819601
AC36: Regression | AD36: =(AD17+AD18)^2/(AD15+AD16) -> 4251632.175 | AE36: 1 | AF36: =AD36 -> 4251632.175 | AG36: =AF36/$AF$41 -> 2528.538526
AC37: Non-parallelism | AD37: =(AD17)^2/AD15+AD18^2/AD16-(AD17+AD18)^2/(AD15+AD16) -> 1333.289286 | AE37: 1 | AF37: =AD37 -> 1333.289286 | AG37: =AF37/$AF$41 -> 0.7929362621 | AH37: =FINV(0.05,AE37,AE$41) -> 4.747225347
AC38: Non-linearity (s) | AD38: =AD19-AD17^2/AD15 -> 20909.74286 | AE38: =AD3-2 -> 4 | AF38: =AD38/AE38 -> 5227.435714 | AG38: =AF38/$AF$41 -> 3.108870205 | AH38: =FINV(0.05,AE38,AE$41) -> 3.259166727
AC39: Non-linearity (t) | AD39: =AD20-AD18^2/AD16 -> 17391.54286 | AE39: =AD4-2 -> 4 | AF39: =AD39/AE39 -> 4347.885714 | AG39: =AF39/$AF$41 -> 2.585782608 | AH39: =FINV(0.05,AE39,AE$41) -> 3.259166727
K41: 5 | AC41: Residual Error | AD41: =AD43-AD35-AD36-AD37-AD38-AD39 -> 20177.5 | AE41: =AE43-AE35-AE36-AE37-AE38-AE39 -> 12 | AF41: =AD41/AE41 -> 1681.458333
AC43: Total | AD43: =SUM(AL17:AL32)-(AD7+AD8)^2/(AD5+AD6) -> 4316754.625 | AE43: =(AD6+AD5)-1 -> 23
AC45: Slope standard | AD45: =AD17/AD15 -> -804.1913357
AC46: Intercept standard | AD46: =AD13-AD45*AD11 -> -592.4056214
AC48: Slope test | AD48: =AD18/AD16 -> -833.1870223
AC49: Intercept test | AD49: =AD14-AD48*AD12 -> -613.4727366
AD51: Limits
AC52: Relative potency | AD52: Upper | AE52: Lower
AC53: =10^AD28 -> 0.9197322661 | AD53: =10^AD30 -> 1.019095672 | AE53: =10^AD29 -> 0.829795706
AC54: Potency | AD54: =$AD$53*$N$19 -> 12.22914807 | AE54: =$AE$53*$N$19 -> 9.957548472
AC55: Deviation | AD55: =(AD53-AC53)/AC53 -> 0.1080351423 | AE55: =(AE53-AC53)/AC53 -> -0.09778558769

Sheet Sample3
U1: V 1.0
D2: PLA tredecim V01Sep2018 | J2: y
AC3: aantal doses standaard | AD3: =COUNT(AW17:AW23)-COUNTIF(AW17:AW23,"=0") -> 6
D4: Sample | E4: l | F4: l | G4: l | H4: l | I4: l | J4: l | M4: Standard | N4: l | O4: l | P4: l | Q4: l | R4: l | S4: l | AC4: aantal doses test | AD4: =COUNT(AW26:AW32)-COUNTIF(AW26:AW32,"=0") -> 6
AC5: aantal responses standaard | AD5: =COUNTIF(AP17:AU23,">0") -> 12
D6: Dose | E6: Response | M6: Dose | N6: Respons | AC6: aantal responses test | AD6: =COUNTIF(AP26:AU32,">0") -> 12
E7: 1 | F7: 2 | G7: 3 | H7: 4 | I7: 5 | J7: 6 | N7: 1 | O7: 2 | P7: 3 | Q7: 4 | R7: 5 | S7: 6 | AC7: som responses standaard | AD7: =SUM(AP17:AU23) -> 9804
C8: 1 | D8: 0.003125 | E8: 1454 | F8: 1605 | L8: 1 | M8: 0.003125 | N8: 1425 | O8: 1516 | AC8: som responses test | AD8: =SUM(AP26:AU32) -> 10388
C9: 2 | D9: 0.00625 | E9: 1283 | F9: 1333 | L9: 2 | M9: 0.00625 | N9: 1177 | O9: 1188 | AC9: som Xsi | AD9: =SUM(AH17:AH23) -> -21.03089987
C10: 3 | D10: 0.0125 | E10: 953 | F10: 956 | L10: 3 | M10: 0.0125 | N10: 884 | O10: 900 | AC10: som Xti | AD10: =SUM(AH26:AH32) -> -21.03089987
C11: 4 | D11: 0.025 | E11: 600 | F11: 687 | L11: 4 | M11: 0.025 | N11: 590 | O11: 681 | AC11: XSm | AD11: =AD9/AD5 -> -1.752574989
C12: 5 | D12: 0.05 | E12: 462 | F12: 511 | L12: 5 | M12: 0.05 | N12: 461 | O12: 463 | AC12: XTm | AD12: =AD10/AD6 -> -1.752574989
C13: 6 | D13: 0.1 | E13: 250 | F13: 294 | L13: 6 | M13: 0.1 | N13: 253 | O13: 266 | AC13: Ysm | AD13: =AD7/AD5 -> 817
C14: 7 | L14: 7 | AC14: Ytm | AD14: =AD8/AD6 -> 865.6666667
AC15: SxxS: | AD15: =SUM(AI17:AI23) -> 3.17166704
AC16: SxxT: | AD16: =SUM(AI26:AI32) -> 3.17166704 | AF16: ni | AG16: ysi | AH16: Xsi | AI16: SxxSi | AJ16: SyySi | AK16: SxySi | AL16: yi^2 | AO16: Dose | AP16: Responses | AV16: Regression | AW16: Dose(log)
AC17: SxyS: | AD17: =SUM(AK17:AK23) -> -2550.627153 | AF17: =COUNTIF(AP17:AU17,">0") -> 2 | AG17: =SUM(AP17:AU17) -> 2941 | AH17: =AF17*AW17 -> -5.010299957 | AI17: =AF17*(AW17-$AD$11)^2 -> 1.132738229 | AJ17: =IF(AF17=0,0,+AF17*(AG17/AF17-$AD$13)^2) -> 854124.5 | AK17: =IF(AF17=0,0,+AF17*(AG17/AF17-$AD$13)*(AW17-$AD$11)) -> -983.6155108 | AL17: =AP17^2+AQ17^2+AR17^2+AS17^2+AT17^2+AU17^2 -> 4328881 | AN17: Standard | AO17: 0.003125 | AP17: 1425 | AQ17: 1516 | AV17: =IF(AO17>0,AW17*$AD$45+$AD$46,"") -> 1422.214286 | AW17: =IF(AO17>0,LOG(AO17),"") -> -2.505149978
D18: Sample: | E18: N0012-18-000003 | M18: Standard name: | N18: std | AC18: SxyT: | AD18: =SUM(AK26:AK32) -> -2728.234851 | AF18: =COUNTIF(AP18:AU18,">0") -> 2 | AG18: =SUM(AP18:AU18) -> 2365 | AH18: -4.408239965 | AI18: 0.4077857623 | AJ18: 267180.5 | AK18: -330.0793902 | AL18: =AP18^2+AQ18^2+AR18^2+AS18^2+AT18^2+AU18^2 -> 2796673 | AO18: 0.00625 | AP18: 1177 | AQ18: 1188 | AV18: 1180.128571 | AW18: -2.204119983
D19: Potency: | E19: =AC53*N19 -> 10.48820198 | F19: =O19 -> AE/mL | M19: Potency: | N19: 12 | O19: AE/mL | AC19: SyyS: | AD19: =SUM(AJ17:AJ23) -> 2072102 | AF19: 2 | AG19: 1784 | AH19: -3.806179974 | AI19: 0.04530952914 | AJ19: 11250 | AK19: -22.57724967 | AL19: 1591456 | AO19: 0.0125 | AP19: 884 | AQ19: 900 | AV19: 938.0428571 | AW19: -1.903089987
D20: CI: | E20: ="("&TEXT(MIN(AD54:AE54),"0.#0")&" - "&TEXT(MAX(AD54:AE54),"0.#0) ")&"= +/-" -> (9.32 - 11.79) = +/- | G20: =ABS((AD54-AE54)/(2*E19)) -> 0.1176610243 | AC20: SyyT: | AD20: =SUM(AJ26:AJ32) -> 2379580.667 | AF20: 2 | AG20: 1271 | AH20: -3.204119983 | AI20: 0.04530952914 | AJ20: 65884.5 | AK20: -54.63694421 | AL20: 811861 | AO20: 0.025 | AP20: 590 | AQ20: 681 | AV20: 695.9571429 | AW20: -1.602059991
N21: F-Ratio | O21: Limits | AC21: B: | AD21: =(AD17+AD18)/(AD15+AD16) -> -832.1904439 | AF21: 2 | AG21: 924 | AH21: -2.602059991 | AI21: 0.4077857623 | AJ21: 252050 | AK21: -320.5969454 | AL21: 426890 | AO21: 0.05 | AP21: 461 | AQ21: 463 | AV21: 453.8714286 | AW21: -1.301029996
D22: Date: | E22: 12/14/2018 | L22: Non-parallelism | N22: =AG37 -> 2.196815112 | O22: =AH37 -> 4.747225347 | AC22: t | AD22: =TINV(0.05,AE41) -> 2.17881283 | AF22: 2 | AG22: 519 | AH22: -2 | AI22: 1.132738229 | AJ22: 621612.5 | AK22: -839.1211129 | AL22: 134765 | AO22: 0.1 | AP22: 253 | AQ22: 266 | AV22: 211.7857143 | AW22: -1
D23: Sample name: | E23: N0012-18-000003 | L23: Non linearity (St) | N23: =AG38 -> 2.309278036 | O23: 3.259166727 | AC23: s | AD23: =SQRT(AF41) -> 47.57800612 | AF23: 0 | AG23: 0 | AH23: 0 | AI23: 0 | AJ23: 0 | AK23: 0 | AL23: 0
D24: Lot number: | E24: - | L24: Non linearity (Sa) | N24: 3.620404106 | O24: 3.259166727 | AC24: g | AD24: =AD22^2*AD23^2/(AD21^2*(AD15+AD16)) -> 0.00244618495
D25: Name technician: | E25: - | L25: Relative Slope | N25: =AD48/AD45 -> 1.069632952 | O25: 0.90-1.10 | AF25: mi | AG25: yti | AH25: Xti | AI25: SxxTi | AJ25: SyyTi | AK25: SxyTi | AL25: yi^2 | AV25: Regression | AW25: Dose(log)
AC26: var(P) | AD26: =(AD23^2/AD21^2)*((1/AD5+1/AD6)+(AD28-AD11+AD12)^2/(AD15+AD16)) -> 0.0005465355015 | AF26: =COUNTIF(AP26:AU26,">0") -> 2 | AG26: =SUM(AP26:AU26) -> 3059 | AH26: =AF26*AW26 -> -5.010299957 | AI26: =AF26*(AW26-$AD$12)^2 -> 1.132738229 | AJ26: =IF(AF26=0,0,+AF26*(AG26/AF26-$AD$14)^2) -> 881349.3889 | AK26: =IF(AF26=0,0,+AF26*(AG26/AF26-$AD$14)*(AW26-$AD$12)) -> -999.1687273 | AL26: =AP26^2+AQ26^2+AR26^2+AS26^2+AT26^2+AU26^2 -> 4690141 | AN26: Test sample | AO26: 0.003125 | AP26: 1454 | AQ26: 1605 | AV26: =IF(AO26>0,AW26*$AD$48+$AD$49,"") -> 1513.02381 | AW26: =IF(AO26>0,LOG(AO26),"") -> -2.505149978
D27: Italic or Bold = Delete point. Press button Recalculate | AC27: limit | AD27: =(AD23*AD22/AD21)*SQRT((1-AD24)*(1/AD6+1/AD5)+(AD28-AD11+AD12)^2/(AD15+AD16)) -> -0.05087436443 | AF27: =COUNTIF(AP27:AU27,">0") -> 2 | AG27: 2616 | AH27: -4.408239965 | AI27: 0.4077857623 | AJ27: 391317.5556 | AK27: -399.4668042 | AL27: 3422978 | AO27: 0.00625 | AP27: 1283 | AQ27: 1333 | AV27: 1254.080952 | AW27: -2.204119983
AC28: M | AD28: =$AD$11-$AD$12-(AD13-AD14)/AD21 -> -0.05848020369 | AF28: 2 | AG28: 1909 | AH28: -3.806179974 | AI28: 0.04530952914 | AJ28: 15782.72222 | AK28: -26.74149795 | AL28: 1822145 | AO28: 0.0125 | AP28: 953 | AQ28: 956 | AV28: 995.1380952 | AW28: -1.903089987
AC29: Ml | AD29: =$AD$11-$AD$12+($AD$28-$AD$11+$AD$12+$AD$27)/(1-$AD$24) -> -0.1096227256 | AF29: 2 | AG29: 1287 | AH29: -3.204119983 | AI29: 0.04530952914 | AJ29: 98716.05556 | AK29: -66.8788307 | AL29: 831969 | AO29: 0.025 | AP29: 600 | AQ29: 687 | AV29: 736.1952381 | AW29: -1.602059991
AC30: Mu | AD30: =$AD$11-$AD$12+($AD$28-$AD$11+$AD$12-$AD$27)/(1-$AD$24) -> -0.007624490171 | AF30: 2 | AG30: 973 | AH30: -2.602059991 | AI30: 0.4077857623 | AJ30: 287534.7222 | AK30: -342.4216201 | AL30: 474565 | AO30: 0.05 | AP30: 462 | AQ30: 511 | AV30: 477.252381 | AW30: -1.301029996
AF31: 2 | AG31: 544 | AH31: -2 | AI31: 1.132738229 | AJ31: 704880.2222 | AK31: -893.5573705 | AL31: 148936 | AO31: 0.1 | AP31: 250 | AQ31: 294 | AV31: 218.3095238 | AW31: -1
AF32: 0 | AG32: 0 | AH32: 0 | AI32: 0 | AJ32: 0 | AK32: 0 | AL32: 0
AC34: Source of variation | AD34: S.S. | AE34: DF | AF34: M.S. | AG34: F RATIO | AH34: F 0.95
AC35: Preparations | AD35: =AD7^2/AD5+AD8^2/AD6-(AD7+AD8)^2/(AD5+AD6) -> 14210.66667 | AE35: 1 | AF35: =AD35 -> 14210.66667 | AG35: =AF35/$AF$41 -> 6.277720512
AC36: Regression | AD36: =(AD17+AD18)^2/(AD15+AD16) -> 4393018.514 | AE36: 1 | AF36: =AD36 -> 4393018.514 | AG36: =AF36/$AF$41 -> 1940.66493
AC37: Non-parallelism | AD37: =(AD17)^2/AD15+AD18^2/AD16-(AD17+AD18)^2/(AD15+AD16) -> 4972.857143 | AE37: 1 | AF37: =AD37 -> 4972.857143 | AG37: =AF37/$AF$41 -> 2.196815112 | AH37: =FINV(0.05,AE37,AE$41) -> 4.747225347
AC38: Non-linearity (s) | AD38: =AD19-AD17^2/AD15 -> 20909.74286 | AE38: =AD3-2 -> 4 | AF38: =AD38/AE38 -> 5227.435714 | AG38: =AF38/$AF$41 -> 2.309278036 | AH38: =FINV(0.05,AE38,AE$41) -> 3.259166727
AC39: Non-linearity (t) | AD39: =AD20-AD18^2/AD16 -> 32781.55238 | AE39: =AD4-2 -> 4 | AF39: =AD39/AE39 -> 8195.388095 | AG39: =AF39/$AF$41 -> 3.620404106 | AH39: =FINV(0.05,AE39,AE$41) -> 3.259166727
K41: 5 | AC41: Residual Error | AD41: =AD43-AD35-AD36-AD37-AD38-AD39 -> 27164 | AE41: =AE43-AE35-AE36-AE37-AE38-AE39 -> 12 | AF41: =AD41/AE41 -> 2263.666667
AC43: Total | AD43: =SUM(AL17:AL32)-(AD7+AD8)^2/(AD5+AD6) -> 4493057.333 | AE43: =(AD6+AD5)-1 -> 23
AC45: Slope standard | AD45: =AD17/AD15 -> -804.1913357
AC46: Intercept standard | AD46: =AD13-AD45*AD11 -> -592.4056214
AC48: Slope test | AD48: =AD18/AD16 -> -860.1895521
AC49: Intercept test | AD49: =AD14-AD48*AD12 -> -641.8800283
AD51: Limits
AC52: Relative potency | AD52: Upper | AE52: Lower
AC53: =10^AD28 -> 0.8740168317 | AD53: =10^AD30 -> 0.9825971719 | AE53: =10^AD29 -> 0.7769217405
AC54: Potency | AD54: =$AD$53*$N$19 -> 11.79116606 | AE54: =$AE$53*$N$19 -> 9.323060886
AC55: Deviation | AD55: =(AD53-AC53)/AC53 -> 0.1242314064 | AE55: =(AE53-AC53)/AC53 -> -0.1110906423

Sheet Sample4
U1: V 1.0
D2: PLA tredecim V01Sep2018
AC3: aantal doses standaard | AD3: =COUNT(AW17:AW23)-COUNTIF(AW17:AW23,"=0") -> 6
D4: Sample | E4: l | F4: l | G4: l | H4: l | I4: l | J4: l | M4: Standard | N4: l | O4: l | P4: l | Q4: l | R4: l | S4: l | AC4: aantal doses test | AD4: =COUNT(AW26:AW32)-COUNTIF(AW26:AW32,"=0") -> 6
AC5: aantal responses standaard | AD5: =COUNTIF(AP17:AU23,">0") -> 12
D6: Dose | E6: Response | M6: Dose | N6: Respons | AC6: aantal responses test | AD6: =COUNTIF(AP26:AU32,">0") -> 12
E7: 1 | F7: 2 | G7: 3 | H7: 4 | I7: 5 | J7: 6 | N7: 1 | O7: 2 | P7: 3 | Q7: 4 | R7: 5 | S7: 6 | AC7: som responses standaard | AD7: =SUM(AP17:AU23) -> 9804
C8: 1 | D8: 0.003125 | E8: 1780 | F8: 1969 | L8: 1 | M8: 0.003125 | N8: 1425 | O8: 1516 | AC8: som responses test | AD8: =SUM(AP26:AU32) -> 13763
C9: 2 | D9: 0.00625 | E9: 1505 | F9: 1560 | L9: 2 | M9: 0.00625 | N9: 1177 | O9: 1188 | AC9: som Xsi | AD9: =SUM(AH17:AH23) -> -21.03089987
C10: 3 | D10: 0.0125 | E10: 1322 | F10: 1326 | L10: 3 | M10: 0.0125 | N10: 884 | O10: 900 | AC10: som Xti | AD10: =SUM(AH26:AH32) -> -21.03089987
C11: 4 | D11: 0.025 | E11: 936 | F11: 968 | L11: 4 | M11: 0.025 | N11: 590 | O11: 681 | AC11: XSm | AD11: =AD9/AD5 -> -1.752574989
C12: 5 | D12: 0.05 | E12: 682 | F12: 689 | L12: 5 | M12: 0.05 | N12: 461 | O12: 463 | AC12: XTm | AD12: =AD10/AD6 -> -1.752574989
C13: 6 | D13: 0.1 | E13: 479 | F13: 547 | L13: 6 | M13: 0.1 | N13: 253 | O13: 266 | AC13: Ysm | AD13: =AD7/AD5 -> 817
C14: 7 | L14: 7 | AC14: Ytm | AD14: =AD8/AD6 -> 1146.916667
AC15: SxxS: | AD15: =SUM(AI17:AI23) -> 3.17166704
AC16: SxxT: | AD16: =SUM(AI26:AI32) -> 3.17166704 | AF16: ni | AG16: ysi | AH16: Xsi | AI16: SxxSi | AJ16: SyySi | AK16: SxySi | AL16: yi^2 | AO16: Dose | AP16: Responses | AV16: Regression | AW16: Dose(log)
AC17: SxyS: | AD17: =SUM(AK17:AK23) -> -2550.627153 | AF17: =COUNTIF(AP17:AU17,">0") -> 2 | AG17: =SUM(AP17:AU17) -> 2941 | AH17: =AF17*AW17 -> -5.010299957 | AI17: =AF17*(AW17-$AD$11)^2 -> 1.132738229 | AJ17: =IF(AF17=0,0,+AF17*(AG17/AF17-$AD$13)^2) -> 854124.5 | AK17: =IF(AF17=0,0,+AF17*(AG17/AF17-$AD$13)*(AW17-$AD$11)) -> -983.6155108 | AL17: =AP17^2+AQ17^2+AR17^2+AS17^2+AT17^2+AU17^2 -> 4328881 | AN17: Standard | AO17: 0.003125 | AP17: 1425 | AQ17: 1516 | AV17: =IF(AO17>0,AW17*$AD$45+$AD$46,"") -> 1422.214286 | AW17: =IF(AO17>0,LOG(AO17),"") -> -2.505149978
D18: Sample: | E18: N0012-18-000004 | M18: Standard name: | N18: std | AC18: SxyT: | AD18: =SUM(AK26:AK32) -> -2926.162073 | AF18: =COUNTIF(AP18:AU18,">0") -> 2 | AG18: =SUM(AP18:AU18) -> 2365 | AH18: -4.408239965 | AI18: 0.4077857623 | AJ18: 267180.5 | AK18: -330.0793902 | AL18: =AP18^2+AQ18^2+AR18^2+AS18^2+AT18^2+AU18^2 -> 2796673 | AO18: 0.00625 | AP18: 1177 | AQ18: 1188 | AV18: 1180.128571 | AW18: -2.204119983
D19: Potency: | E19: =AC53*N19 -> 4.978112728 | F19: =O19 -> AE/mL | M19: Potency: | N19: 12 | O19: AE/mL | AC19: SyyS: | AD19: =SUM(AJ17:AJ23) -> 2072102 | AF19: 2 | AG19: 1784 | AH19: -3.806179974 | AI19: 0.04530952914 | AJ19: 11250 | AK19: -22.57724967 | AL19: 1591456 | AO19: 0.0125 | AP19: 884 | AQ19: 900 | AV19: 938.0428571 | AW19: -1.903089987
D20: CI: | E20: ="("&TEXT(MIN(AD54:AE54),"0.#0")&" - "&TEXT(MAX(AD54:AE54),"0.#0) ")&"= +/-" -> (4.37 - 5.65) = +/- | G20: =ABS((AD54-AE54)/(2*E19)) -> 0.1284279519 | AC20: SyyT: | AD20: =SUM(AJ26:AJ32) -> 2724317.417 | AF20: 2 | AG20: 1271 | AH20: -3.204119983 | AI20: 0.04530952914 | AJ20: 65884.5 | AK20: -54.63694421 | AL20: 811861 | AO20: 0.025 | AP20: 590 | AQ20: 681 | AV20: 695.9571429 | AW20: -1.602059991
N21: F-Ratio | O21: Limits | AC21: B: | AD21: =(AD17+AD18)/(AD15+AD16) -> -863.3928399 | AF21: 2 | AG21: 924 | AH21: -2.602059991 | AI21: 0.4077857623 | AJ21: 252050 | AK21: -320.5969454 | AL21: 426890 | AO21: 0.05 | AP21: 461 | AQ21: 463 | AV21: 453.8714286 | AW21: -1.301029996
D22: Date: | E22: 12/14/2018 | L22: Non-parallelism | N22: =AG37 -> 8.665988394 | O22: =AH37 -> 4.747225347 | AC22: t | AD22: =TINV(0.05,AE41) -> 2.17881283 | AF22: 2 | AG22: 519 | AH22: -2 | AI22: 1.132738229 | AJ22: 621612.5 | AK22: -839.1211129 | AL22: 134765 | AO22: 0.1 | AP22: 253 | AQ22: 266 | AV22: 211.7857143 | AW22: -1
D23: Sample name: | E23: N0012-18-000004 | L23: Non linearity (St) | N23: =AG38 -> 2.037622536 | O23: 3.259166727 | AC23: s | AD23: =SQRT(AF41) -> 50.65035373 | AF23: 0 | AG23: 0 | AH23: 0 | AI23: 0 | AJ23: 0 | AK23: 0 | AL23: 0
D24: Lot number: | E24: - | L24: Non linearity (Sa) | N24: 2.402771249 | O24: 3.259166727 | AC24: g | AD24: =AD22^2*AD23^2/(AD21^2*(AD15+AD16)) -> 0.002575552121
D25: Name technician: | E25: - | L25: Relative Slope | N25: =AD48/AD45 -> 1.147232385 | O25: 0.90-1.10 | AF25: mi | AG25: yti | AH25: Xti | AI25: SxxTi | AJ25: SyyTi | AK25: SxyTi | AL25: yi^2 | AV25: Regression | AW25: Dose(log)
AC26: var(P) | AD26: =(AD23^2/AD21^2)*((1/AD5+1/AD6)+(AD28-AD11+AD12)^2/(AD15+AD16)) -> 0.000652801418 | AF26: =COUNTIF(AP26:AU26,">0") -> 2 | AG26: =SUM(AP26:AU26) -> 3749 | AH26: =AF26*AW26 -> -5.010299957 | AI26: =AF26*(AW26-$AD$12)^2 -> 1.132738229 | AJ26: =IF(AF26=0,0,+AF26*(AG26/AF26-$AD$14)^2) -> 1058755.014 | AK26: =IF(AF26=0,0,+AF26*(AG26/AF26-$AD$14)*(AW26-$AD$12)) -> -1095.122038 | AL26: =AP26^2+AQ26^2+AR26^2+AS26^2+AT26^2+AU26^2 -> 7045361 | AN26: Test sample | AO26: 0.003125 | AP26: 1780 | AQ26: 1969 | AV26: =IF(AO26>0,AW26*$AD$48+$AD$49,"") -> 1841.238095 | AW26: =IF(AO26>0,LOG(AO26),"") -> -2.505149978
D27: Italic or Bold = Delete point. Press button Recalculate | AC27: limit | AD27: =(AD23*AD22/AD21)*SQRT((1-AD24)*(1/AD6+1/AD5)+(AD28-AD11+AD12)^2/(AD15+AD16)) -> -0.05560559672 | AF27: =COUNTIF(AP27:AU27,">0") -> 2 | AG27: 3065 | AH27: -4.408239965 | AI27: 0.4077857623 | AJ27: 297349.0139 | AK27: -348.2164475 | AL27: 4698625 | AO27: 0.00625 | AP27: 1505 | AQ27: 1560 | AV27: 1563.509524 | AW27: -2.204119983
AC28: M | AD28: =$AD$11-$AD$12-(AD13-AD14)/AD21 -> -0.3821165192 | AF28: 2 | AG28: 2648 | AH28: -3.806179974 | AI28: 0.04530952914 | AJ28: 62717.01389 | AK28: -53.30739507 | AL28: 3505960 | AO28: 0.0125 | AP28: 1322 | AQ28: 1326 | AV28: 1285.780952 | AW28: -1.903089987
AC29: Ml | AD29: =$AD$11-$AD$12+($AD$28-$AD$11+$AD$12+$AD$27)/(1-$AD$24) -> -0.4388524031 | AF29: 2 | AG29: 1904 | AH29: -3.204119983 | AI29: 0.04530952914 | AJ29: 75985.01389 | AK29: -58.67576332 | AL29: 1813120 | AO29: 0.025 | AP29: 936 | AQ29: 968 | AV29: 1008.052381 | AW29: -1.602059991
AC30: Mu | AD30: =$AD$11-$AD$12+($AD$28-$AD$11+$AD$12-$AD$27)/(1-$AD$24) -> -0.3273540398 | AF30: 2 | AG30: 1371 | AH30: -2.602059991 | AI30: 0.4077857623 | AJ30: 425810.6806 | AK30: -416.7007715 | AL30: 939845 | AO30: 0.05 | AP30: 682 | AQ30: 689 | AV30: 730.3238095 | AW30: -1.301029996
AF31: 2 | AG31: 1026 | AH31: -2 | AI31: 1.132738229 | AJ31: 803700.6806 | AK31: -954.1396571 | AL31: 528650 | AO31: 0.1 | AP31: 479 | AQ31: 547 | AV31: 452.5952381 | AW31: -1
AF32: 0 | AG32: 0 | AH32: 0 | AI32: 0 | AJ32: 0 | AK32: 0 | AL32: 0
AC34: Source of variation | AD34: S.S. | AE34: DF | AF34: M.S. | AG34: F RATIO | AH34: F 0.95
AC35: Preparations | AD35: =AD7^2/AD5+AD8^2/AD6-(AD7+AD8)^2/(AD5+AD6) -> 653070.0417 | AE35: 1 | AF35: =AD35 -> 653070.0417 | AG35: =AF35/$AF$41 -> 254.5627162
AC36: Regression | AD36: =(AD17+AD18)^2/(AD15+AD16) -> 4728620.604 | AE36: 1 | AF36: =AD36 -> 4728620.604 | AG36: =AF36/$AF$41 -> 1843.18745
AC37: Non-parallelism | AD37: =(AD17)^2/AD15+AD18^2/AD16-(AD17+AD18)^2/(AD15+AD16) -> 22232.23214 | AE37: 1 | AF37: =AD37 -> 22232.23214 | AG37: =AF37/$AF$41 -> 8.665988394 | AH37: =FINV(0.05,AE37,AE$41) -> 4.747225347
AC38: Non-linearity (s) | AD38: =AD19-AD17^2/AD15 -> 20909.74286 | AE38: =AD3-2 -> 4 | AF38: =AD38/AE38 -> 5227.435714 | AG38: =AF38/$AF$41 -> 2.037622536 | AH38: =FINV(0.05,AE38,AE$41) -> 3.259166727
AC39: Non-linearity (t) | AD39: =AD20-AD18^2/AD16 -> 24656.8381 | AE39: =AD4-2 -> 4 | AF39: =AD39/AE39 -> 6164.209524 | AG39: =AF39/$AF$41 -> 2.402771249 | AH39: =FINV(0.05,AE39,AE$41) -> 3.259166727
K41: 5 | AC41: Residual Error | AD41: =AD43-AD35-AD36-AD37-AD38-AD39 -> 30785.5 | AE41: =AE43-AE35-AE36-AE37-AE38-AE39 -> 12 | AF41: =AD41/AE41 -> 2565.458333
AC43: Total | AD43: =SUM(AL17:AL32)-(AD7+AD8)^2/(AD5+AD6) -> 5480274.958 | AE43: =(AD6+AD5)-1 -> 23
AC45: Slope standard | AD45: =AD17/AD15 -> -804.1913357
AC46: Intercept standard | AD46: =AD13-AD45*AD11 -> -592.4056214
AC48: Slope test | AD48: =AD18/AD16 -> -922.5943442
AC49: Intercept test | AD49: =AD14-AD48*AD12 -> -469.9991061
AD51: Limits
AC52: Relative potency | AD52: Upper | AE52: Lower
AC53: =10^AD28 -> 0.4148427273 | AD53: =10^AD30 -> 0.4705935389 | AE53: =10^AD29 -> 0.3640387353
AC54: Potency | AD54: =$AD$53*$N$19 -> 5.647122467 | AE54: =$AE$53*$N$19 -> 4.368464823
AC55: Deviation | AD55: =(AD53-AC53)/AC53 -> 0.1343902348 | AE55: =(AE53-AC53)/AC53 -> -0.1224656689

Sheet Sample5
U1: V 1.0
D2: PLA tredecim V01Sep2018
AC3: aantal doses standaard | AD3: =COUNT(AW17:AW23)-COUNTIF(AW17:AW23,"=0") -> 6
D4: Sample | E4: l | F4: l | G4: l | H4: l | I4: l | J4: l | M4: Standard | N4: l | O4: l | P4: l | Q4: l | R4: l | S4: l | AC4: aantal doses test | AD4: =COUNT(AW26:AW32)-COUNTIF(AW26:AW32,"=0") -> 6
AC5: aantal responses standaard | AD5: =COUNTIF(AP17:AU23,">0") -> 12
D6: Dose | E6: Response | M6: Dose | N6: Respons | AC6: aantal responses test | AD6: =COUNTIF(AP26:AU32,">0") -> 12
E7: 1 | F7: 2 | G7: 3 | H7: 4 | I7: 5 | J7: 6 | N7: 1 | O7: 2 | P7: 3 | Q7: 4 | R7: 5 | S7: 6 | AC7: som responses standaard | AD7: =SUM(AP17:AU23) -> 9804
C8: 1 | D8: 0.003125 | E8: 1781 | F8: 1825 | L8: 1 | M8: 0.003125 | N8: 1425 | O8: 1516 | AC8: som responses test | AD8: =SUM(AP26:AU32) -> 13967
C9: 2 | D9: 0.00625 | E9: 1529 | F9: 1607 | L9: 2 | M9: 0.00625 | N9: 1177 | O9: 1188 | AC9: som Xsi | AD9: =SUM(AH17:AH23) -> -21.03089987
C10: 3 | D10: 0.0125 | E10: 1090 | F10: 1461 | L10: 3 | M10: 0.0125 | N10: 884 | O10: 900 | AC10: som Xti | AD10: =SUM(AH26:AH32) -> -21.03089987
C11: 4 | D11: 0.025 | E11: 1012 | F11: 1069 | L11: 4 | M11: 0.025 | N11: 590 | O11: 681 | AC11: XSm | AD11: =AD9/AD5 -> -1.752574989
C12: 5 | D12: 0.05 | E12: 748 | F12: 755 | L12: 5 | M12: 0.05 | N12: 461 | O12: 463 | AC12: XTm | AD12: =AD10/AD6 -> -1.752574989
C13: 6 | D13: 0.1 | E13: 534 | F13: 556 | L13: 6 | M13: 0.1 | N13: 253 | O13: 266 | AC13: Ysm | AD13: =AD7/AD5 -> 817
C14: 7 | L14: 7 | AC14: Ytm | AD14: =AD8/AD6 -> 1163.916667
AC15: SxxS: | AD15: =SUM(AI17:AI23) -> 3.17166704
AC16: SxxT: | AD16: =SUM(AI26:AI32) -> 3.17166704 | AF16: ni | AG16: ysi | AH16: Xsi | AI16: SxxSi | AJ16: SyySi | AK16: SxySi | AL16: yi^2 | AO16: Dose | AP16: Responses | AV16: Regression | AW16: Dose(log)
AC17: SxyS: | AD17: =SUM(AK17:AK23) -> -2550.627153 | AF17: =COUNTIF(AP17:AU17,">0") -> 2 | AG17: =SUM(AP17:AU17) -> 2941 | AH17: =AF17*AW17 -> -5.010299957 | AI17: =AF17*(AW17-$AD$11)^2 -> 1.132738229 | AJ17: =IF(AF17=0,0,+AF17*(AG17/AF17-$AD$13)^2) -> 854124.5 | AK17: =IF(AF17=0,0,+AF17*(AG17/AF17-$AD$13)*(AW17-$AD$11)) -> -983.6155108 | AL17: =AP17^2+AQ17^2+AR17^2+AS17^2+AT17^2+AU17^2 -> 4328881 | AN17: Standard | AO17: 0.003125 | AP17: 1425 | AQ17: 1516 | AV17: =IF(AO17>0,AW17*$AD$45+$AD$46,"") -> 1422.214286 | AW17: =IF(AO17>0,LOG(AO17),"") -> -2.505149978
D18: Sample: | E18: N0012-18-000005 | M18: Standard name: | N18: std | AC18: SxyT: | AD18: =SUM(AK26:AK32) -> -2701.593696 | AF18: =COUNTIF(AP18:AU18,">0") -> 2 | AG18: =SUM(AP18:AU18) -> 2365 | AH18: -4.408239965 | AI18: 0.4077857623 | AJ18: 267180.5 | AK18: -330.0793902 | AL18: =AP18^2+AQ18^2+AR18^2+AS18^2+AT18^2+AU18^2 -> 2796673 | AO18: 0.00625 | AP18: 1177 | AQ18: 1188 | AV18: 1180.128571 | AW18: -2.204119983
D19: Potency: | E19: =AC53*N19 -> 4.572934666 | F19: =O19 -> AE/mL | M19: Potency: | N19: 12 | O19: AE/mL | AC19: SyyS: | AD19: =SUM(AJ17:AJ23) -> 2072102 | AF19: 2 | AG19: 1784 | AH19: -3.806179974 | AI19: 0.04530952914 | AJ19: 11250 | AK19: -22.57724967 | AL19: 1591456 | AO19: 0.0125 | AP19: 884 | AQ19: 900 | AV19: 938.0428571 | AW19: -1.903089987
D20: CI: | E20: ="("&TEXT(MIN(AD54:AE54),"0.#0")&" - "&TEXT(MAX(AD54:AE54),"0.#0) ")&"= +/-" -> (3.63 - 5.68) = +/- | G20: =ABS((AD54-AE54)/(2*E19)) -> 0.2236990528 | AC20: SyyT: | AD20: =SUM(AJ26:AJ32) -> 2305077.417 | AF20: 2 | AG20: 1271 | AH20: -3.204119983 | AI20: 0.04530952914 | AJ20: 65884.5 | AK20: -54.63694421 | AL20: 811861 | AO20: 0.025 | AP20: 590 | AQ20: 681 | AV20: 695.9571429 | AW20: -1.602059991
N21: F-Ratio | O21: Limits | AC21: B: | AD21: =(AD17+AD18)/(AD15+AD16) -> -827.9905777 | AF21: 2 | AG21: 924 | AH21: -2.602059991 | AI21: 0.4077857623 | AJ21: 252050 | AK21: -320.5969454 | AL21: 426890 | AO21: 0.05 | AP21: 461 | AQ21: 463 | AV21: 453.8714286 | AW21: -1.301029996
D22: Date: | E22: 12/14/2018 | L22: Non-parallelism | N22: =AG37 -> 0.5177229315 | O22: =AH37 -> 4.747225347 | AC22: t | AD22: =TINV(0.05,AE41) -> 2.17881283 | AF22: 2 | AG22: 519 | AH22: -2 | AI22: 1.132738229 | AJ22: 621612.5 | AK22: -839.1211129 | AL22: 134765 | AO22: 0.1 | AP22: 253 | AQ22: 266 | AV22: 211.7857143 | AW22: -1
D23: Sample name: | E23: N0012-18-000005 | L23: Non linearity (St) | N23: =AG38 -> 0.753255424 | O23: 3.259166727 | AC23: s | AD23: =SQRT(AF41) -> 83.30541199 | AF23: 0 | AG23: 0 | AH23: 0 | AI23: 0 | AJ23: 0 | AK23: 0 | AL23: 0
D24: Lot number: | E24: - | L24: Non linearity (Sa) | N24: 0.14004057 | O24: 3.259166727 | AC24: g | AD24: =AD22^2*AD23^2/(AD21^2*(AD15+AD16)) -> 0.007575615202
D25: Name technician: | E25: - | L25: Relative Slope | N25: =AD48/AD45 -> 1.059188009 | O25: 0.90-1.10 | AF25: mi | AG25: yti | AH25: Xti | AI25: SxxTi | AJ25: SyyTi | AK25: SxyTi | AL25: yi^2 | AV25: Regression | AW25: Dose(log)
AC26: var(P) | AD26: =(AD23^2/AD21^2)*((1/AD5+1/AD6)+(AD28-AD11+AD12)^2/(AD15+AD16)) -> 0.001967255457 | AF26: =COUNTIF(AP26:AU26,">0") -> 2 | AG26: =SUM(AP26:AU26) -> 3606 | AH26: =AF26*AW26 -> -5.010299957 | AI26: =AF26*(AW26-$AD$12)^2 -> 1.132738229 | AJ26: =IF(AF26=0,0,+AF26*(AG26/AF26-$AD$14)^2) -> 816855.0139 | AK26: =IF(AF26=0,0,+AF26*(AG26/AF26-$AD$14)*(AW26-$AD$12)) -> -961.9162653 | AL26: =AP26^2+AQ26^2+AR26^2+AS26^2+AT26^2+AU26^2 -> 6502586 | AN26: Test sample | AO26: 0.003125 | AP26: 1781 | AQ26: 1825 | AV26: =IF(AO26>0,AW26*$AD$48+$AD$49,"") -> 1804.952381 | AW26: =IF(AO26>0,LOG(AO26),"") -> -2.505149978
D27: Italic or Bold = Delete point. Press button Recalculate | AC27: limit | AD27: =(AD23*AD22/AD21)*SQRT((1-AD24)*(1/AD6+1/AD5)+(AD28-AD11+AD12)^2/(AD15+AD16)) -> -0.09632409375 | AF27: =COUNTIF(AP27:AU27,">0") -> 2 | AG27: 3136 | AH27: -4.408239965 | AI27: 0.4077857623 | AJ27: 326566.6806 | AK27: -364.9236122 | AL27: 4920290 | AO27: 0.00625 | AP27: 1529 | AQ27: 1607 | AV27: 1548.538095 | AW27: -2.204119983
AC28: M | AD28: =$AD$11-$AD$12-(AD13-AD14)/AD21 -> -0.4189862494 | AF28: 2 | AG28: 2551 | AH28: -3.806179974 | AI28: 0.04530952914 | AJ28: 24901.68056 | AK28: -33.58993035 | AL28: 3322621 | AO28: 0.0125 | AP28: 1090 | AQ28: 1461 | AV28: 1292.12381 | AW28: -1.903089987
AC29: Ml | AD29: =$AD$11-$AD$12+($AD$28-$AD$11+$AD$12+$AD$27)/(1-$AD$24) -> -0.5192439354 | AF29: 2 | AG29: 2081 | AH29: -3.204119983 | AI29: 0.04530952914 | AJ29: 30463.34722 | AK29: -37.15211863 | AL29: 2166905 | AO29: 0.025 | AP29: 1012 | AQ29: 1069 | AV29: 1035.709524 | AW29: -1.602059991
AC30: Mu | AD30: =$AD$11-$AD$12+($AD$28-$AD$11+$AD$12-$AD$27)/(1-$AD$24) -> -0.3251251789 | AF30: 2 | AG30: 1503 | AH30: -2.602059991 | AI30: 0.4077857623 | AJ30: 340175.0139 | AK30: -372.4493621 | AL30: 1129529 | AO30: 0.05 | AP30: 748 | AQ30: 755 | AV30: 779.2952381 | AW30: -1.301029996
AF31: 2 | AG31: 1090 | AH31: -2 | AI31: 1.132738229 | AJ31: 766115.6806 | AK31: -931.5624074 | AL31: 594292 | AO31: 0.1 | AP31: 534 | AQ31: 556 | AV31: 522.8809524 | AW31: -1
AF32: 0 | AG32: 0 | AH32: 0 | AI32: 0 | AJ32: 0 | AK32: 0 | AL32: 0
AC34: Source of variation | AD34: S.S. | AE34: DF | AF34: M.S. | AG34: F RATIO | AH34: F 0.95
AC35: Preparations | AD35: =AD7^2/AD5+AD8^2/AD6-(AD7+AD8)^2/(AD5+AD6) -> 722107.0417 | AE35: 1 | AF35: =AD35 -> 722107.0417 | AG35: =AF35/$AF$41 -> 104.0531296
AC36: Regression | AD36: =(AD17+AD18)^2/(AD15+AD16) -> 4348789.375 | AE36: 1 | AF36: =AD36 -> 4348789.375 | AG36: =AF36/$AF$41 -> 626.6455225
AC37: Non-parallelism | AD37: =(AD17)^2/AD15+AD18^2/AD16-(AD17+AD18)^2/(AD15+AD16) -> 3592.889286 | AE37: 1 | AF37: =AD37 -> 3592.889286 | AG37: =AF37/$AF$41 -> 0.5177229315 | AH37: =FINV(0.05,AE37,AE$41) -> 4.747225347
AC38: Non-linearity (s) | AD38: =AD19-AD17^2/AD15 -> 20909.74286 | AE38: =AD3-2 -> 4 | AF38: =AD38/AE38 -> 5227.435714 | AG38: =AF38/$AF$41 -> 0.753255424 | AH38: =FINV(0.05,AE38,AE$41) -> 3.259166727
AC39: Non-linearity (t) | AD39: =AD20-AD18^2/AD16 -> 3887.409524 | AE39: =AD4-2 -> 4 | AF39: =AD39/AE39 -> 971.852381 | AG39: =AF39/$AF$41 -> 0.14004057 | AH39: =FINV(0.05,AE39,AE$41) -> 3.259166727
K41: 5 | AC41: Residual Error | AD41: =AD43-AD35-AD36-AD37-AD38-AD39 -> 83277.5 | AE41: =AE43-AE35-AE36-AE37-AE38-AE39 -> 12 | AF41: =AD41/AE41 -> 6939.791667
AC43: Total | AD43: =SUM(AL17:AL32)-(AD7+AD8)^2/(AD5+AD6) -> 5182563.958 | AE43: =(AD6+AD5)-1 -> 23
AC45: Slope standard | AD45: =AD17/AD15 -> -804.1913357
AC46: Intercept standard | AD46: =AD13-AD45*AD11 -> -592.4056214
AC48: Slope test | AD48: =AD18/AD16 -> -851.7898196
AC49: Intercept test | AD49: =AD14-AD48*AD12 -> -328.9088673
AD51: Limits
AC52: Relative potency | AD52: Upper | AE52: Lower
AC53: =10^AD28 -> 0.3810778889 | AD53: =10^AD30 -> 0.4730148998 | AE53: =10^AD29 -> 0.3025213743
AC54: Potency | AD54: =$AD$53*$N$19 -> 5.676178798 | AE54: =$AE$53*$N$19 -> 3.630256491
AC55: Deviation | AD55: =(AD53-AC53)/AC53 -> 0.2412551703 | AE55: =(AE53-AC53)/AC53 -> -0.2061429353

Sheet Sample6
U1: V 1.0
D2: PLA tredecim V01Sep2018
AC3: aantal doses standaard | AD3: =COUNT(AW17:AW23)-COUNTIF(AW17:AW23,"=0") -> 6
D4: Sample | E4: l | F4: l | G4: l | H4: l | I4: l | J4: l | M4: Standard | N4: l | O4: l | P4: l | Q4: l | R4: l | S4: l | AC4: aantal doses test | AD4: =COUNT(AW26:AW32)-COUNTIF(AW26:AW32,"=0") -> 6
AC5: aantal responses standaard | AD5: =COUNTIF(AP17:AU23,">0") -> 12
D6: Dose | E6: Response | M6: Dose | N6: Respons | AC6: aantal responses test | AD6: =COUNTIF(AP26:AU32,">0") -> 12
E7: 1 | F7: 2 | G7: 3 | H7: 4 | I7: 5 | J7: 6 | N7: 1 | O7: 2 | P7: 3 | Q7: 4 | R7: 5 | S7: 6 | AC7: som responses standaard | AD7: =SUM(AP17:AU23) -> 9804
C8: 1 | D8: 0.003125 | E8: 1568 | F8: 1931 | L8: 1 | M8: 0.003125 | N8: 1425 | O8: 1516 | AC8: som responses test | AD8: =SUM(AP26:AU32) -> 13748
C9: 2 | D9: 0.00625 | E9: 1541 | F9: 1653 | L9: 2 | M9: 0.00625 | N9: 1177 | O9: 1188 | AC9: som Xsi | AD9: =SUM(AH17:AH23) -> -21.03089987
C10: 3 | D10: 0.0125 | E10: 1126 | F10: 1306 | L10: 3 | M10: 0.0125 | N10: 884 | O10: 900 | AC10: som Xti | AD10: =SUM(AH26:AH32) -> -21.03089987
C11: 4 | D11: 0.025 | E11: 989 | F11: 1068 | L11: 4 | M11: 0.025 | N11: 590 | O11: 681 | AC11: XSm | AD11: =AD9/AD5 -> -1.752574989
C12: 5 | D12: 0.05 | E12: 733 | F12: 749 | L12: 5 | M12: 0.05 | N12: 461 | O12: 463 | AC12: XTm | AD12: =AD10/AD6 -> -1.752574989
C13: 6 | D13: 0.1 | E13: 530 | F13: 554 | L13: 6 | M13: 0.1 | N13: 253 | O13: 266 | AC13: Ysm | AD13: =AD7/AD5 -> 817
C14: 7 | L14: 7 | AC14: Ytm | AD14: =AD8/AD6 -> 1145.666667
AC15: SxxS: | AD15: =SUM(AI17:AI23) -> 3.17166704
AC16: SxxT: | AD16: =SUM(AI26:AI32) -> 3.17166704 | AF16: ni | AG16: ysi | AH16: Xsi | AI16: SxxSi | AJ16: SyySi | AK16: SxySi | AL16: yi^2 | AO16: Dose | AP16: Responses | AV16: Regression | AW16: Dose(log)
AC17: SxyS: | AD17: =SUM(AK17:AK23) -> -2550.627153 | AF17: =COUNTIF(AP17:AU17,">0") -> 2 | AG17: =SUM(AP17:AU17) -> 2941 | AH17: =AF17*AW17 -> -5.010299957 | AI17: =AF17*(AW17-$AD$11)^2 -> 1.132738229 | AJ17: =IF(AF17=0,0,+AF17*(AG17/AF17-$AD$13)^2) -> 854124.5 | AK17: =IF(AF17=0,0,+AF17*(AG17/AF17-$AD$13)*(AW17-$AD$11)) -> -983.6155108 | AL17: =AP17^2+AQ17^2+AR17^2+AS17^2+AT17^2+AU17^2 -> 4328881 | AN17: Standard | AO17: 0.003125 | AP17: 1425 | AQ17: 1516 | AV17: =IF(AO17>0,AW17*$AD$45+$AD$46,"") -> 1422.214286 | AW17: =IF(AO17>0,LOG(AO17),"") -> -2.505149978
D18: Sample: | E18: N0012-18-000006 | M18: Standard name: | N18: std | AC18: SxyT: | AD18: =SUM(AK26:AK32) -> -2646.956752 | AF18: =COUNTIF(AP18:AU18,">0") -> 2 | AG18: =SUM(AP18:AU18) -> 2365 | AH18: -4.408239965 | AI18: 0.4077857623 | AJ18: 267180.5 | AK18: -330.0793902 | AL18: =AP18^2+AQ18^2+AR18^2+AS18^2+AT18^2+AU18^2 -> 2796673 | AO18: 0.00625 | AP18: 1177 | AQ18: 1188 | AV18: 1180.128571 | AW18: -2.204119983
D19: Potency: | E19: =AC53*N19 -> 4.76500795 | F19: =O19 -> AE/mL | M19: Potency: | N19: 12 | O19: AE/mL | AC19: SyyS: | AD19: =SUM(AJ17:AJ23) -> 2072102 | AF19: 2 | AG19: 1784 | AH19: -3.806179974 | AI19: 0.04530952914 | AJ19: 11250 | AK19: -22.57724967 | AL19: 1591456 | AO19: 0.0125 | AP19: 884 | AQ19: 900 | AV19: 938.0428571 | AW19: -1.903089987
D20: CI: | E20: ="("&TEXT(MIN(AD54:AE54),"0.#0")&" - "&TEXT(MAX(AD54:AE54),"0.#0) ")&"= +/-" -> (3.69 - 6.05) = +/- | G20: =ABS((AD54-AE54)/(2*E19)) -> 0.2471421768 | AC20: SyyT: | AD20: =SUM(AJ26:AJ32) -> 2230319.667 | AF20: 2 | AG20: 1271 | AH20: -3.204119983 | AI20: 0.04530952914 | AJ20: 65884.5 | AK20: -54.63694421 | AL20: 811861 | AO20: 0.025 | AP20: 590 | AQ20: 681 | AV20: 695.9571429 | AW20: -1.602059991
N21: F-Ratio | O21: Limits | AC21: B: | AD21: =(AD17+AD18)/(AD15+AD16) -> -819.3772927 | AF21: 2 | AG21: 924 | AH21: -2.602059991 | AI21: 0.4077857623 | AJ21: 252050 | AK21: -320.5969454 | AL21: 426890 | AO21: 0.05 | AP21: 461 | AQ21: 463 | AV21: 453.8714286 | AW21: -1.301029996
D22: Date: | E22: 12/14/2018 | L22: Non-parallelism | N22: =AG37 -> 0.1747581929 | O22: =AH37 -> 4.747225347 | AC22: t | AD22: =TINV(0.05,AE41) -> 2.17881283 | AF22: 2 | AG22: 519 | AH22: -2 | AI22: 1.132738229 | AJ22: 621612.5 | AK22: -839.1211129 | AL22: 134765 | AO22: 0.1 | AP22: 253 | AQ22: 266 | AV22: 211.7857143 | AW22: -1
D23: Sample name: | E23: N0012-18-000006 | L23: Non linearity (St) | N23: =AG38 -> 0.6244883331 | O23: 3.259166727 | AC23: s | AD23: =SQRT(AF41) -> 91.49180291 | AF23: 0 | AG23: 0 | AH23: 0 | AI23: 0 | AJ23: 0 | AK23: 0 | AL23: 0
D24: Lot number: | E24: - | L24: Non linearity (Sa) | N24: 0.6351533045 | O24: 3.259166727 | AC24: g | AD24: =AD22^2*AD23^2/(AD21^2*(AD15+AD16)) -> 0.00933079797
D25: Name technician: | E25: - | L25: Relative Slope | N25: =AD48/AD45 -> 1.037767025 | O25: 0.90-1.10 | AF25: mi | AG25: yti | AH25: Xti | AI25: SxxTi | AJ25: SyyTi | AK25: SxyTi | AL25: yi^2 | AV25: Regression | AW25: Dose(log)
AC26: var(P) | AD26: =(AD23^2/AD21^2)*((1/AD5+1/AD6)+(AD28-AD11+AD12)^2/(AD15+AD16)) -> 0.00239424279 | AF26: =COUNTIF(AP26:AU26,">0") -> 2 | AG26: =SUM(AP26:AU26) -> 3499 | AH26: =AF26*AW26 -> -5.010299957 | AI26: =AF26*(AW26-$AD$12)^2 -> 1.132738229 | AJ26: =IF(AF26=0,0,+AF26*(AG26/AF26-$AD$14)^2) -> 729229.3889 | AK26: =IF(AF26=0,0,+AF26*(AG26/AF26-$AD$14)*(AW26-$AD$12)) -> -908.8597286 | AL26: =AP26^2+AQ26^2+AR26^2+AS26^2+AT26^2+AU26^2 -> 6187385 | AN26: Test sample | AO26: 0.003125 | AP26: 1568 | AQ26: 1931 | AV26: =IF(AO26>0,AW26*$AD$48+$AD$49,"") -> 1773.738095 | AW26: =IF(AO26>0,LOG(AO26),"") -> -2.505149978
D27: Italic or Bold = Delete point. Press button Recalculate | AC27: limit | AD27: =(AD23*AD22/AD21)*SQRT((1-AD24)*(1/AD6+1/AD5)+(AD28-AD11+AD12)^2/(AD15+AD16)) -> -0.1061789258 | AF27: =COUNTIF(AP27:AU27,">0") -> 2 | AG27: 3194 | AH27: -4.408239965 | AI27: 0.4077857623 | AJ27: 407403.5556 | AK27: -407.5946141 | AL27: 5107090 | AO27: 0.00625 | AP27: 1541 | AQ27: 1653 | AV27: 1522.509524 | AW27: -2.204119983
AC28: M | AD28: =$AD$11-$AD$12-(AD13-AD14)/AD21 -> -0.4011176165 | AF28: 2 | AG28: 2432 | AH28: -3.806179974 | AI28: 0.04530952914 | AJ28: 9893.555556 | AK28: -21.17244303 | AL28: 2973512 | AO28: 0.0125 | AP28: 1126 | AQ28: 1306 | AV28: 1271.280952 | AW28: -1.903089987
AC29: Ml | AD29: =$AD$11-$AD$12+($AD$28-$AD$11+$AD$12+$AD$27)/(1-$AD$24) -> -0.512074607 | AF29: 2 | AG29: 2057 | AH29: -3.204119983 | AI29: 0.04530952914 | AJ29: 27456.05556 | AK29: -35.27068116 | AL29: 2118745 | AO29: 0.025 | AP29: 989 | AQ29: 1068 | AV29: 1020.052381 | AW29: -1.602059991
AC30: Mu | AD30: =$AD$11-$AD$12+($AD$28-$AD$11+$AD$12-$AD$27)/(1-$AD$24) -> -0.2977166244 | AF30: 2 | AG30: 1482 | AH30: -2.602059991 | AI30: 0.4077857623 | AJ30: 327510.2222 | AK30: -365.4504147 | AL30: 1098290 | AO30: 0.05 | AP30: 733 | AQ30: 749 | AV30: 768.8238095 | AW30: -1.301029996
AF31: 2 | AG31: 1084 | AH31: -2 | AI31: 1.132738229 | AJ31: 728826.8889 | AK31: -908.6088702 | AL31: 587816 | AO31: 0.1 | AP31: 530 | AQ31: 554 | AV31: 517.5952381 | AW31: -1
AF32: 0 | AG32: 0 | AH32: 0 | AI32: 0 | AJ32: 0 | AK32: 0 | AL32: 0
AC34: Source of variation | AD34: S.S. | AE34: DF | AF34: M.S. | AG34: F RATIO | AH34: F 0.95
AC35: Preparations | AD35: =AD7^2/AD5+AD8^2/AD6-(AD7+AD8)^2/(AD5+AD6) -> 648130.6667 | AE35: 1 | AF35: =AD35 -> 648130.6667 | AG35: =AF35/$AF$41 -> 77.42802815
AC36: Regression | AD36: =(AD17+AD18)^2/(AD15+AD16) -> 4258782.229 | AE36: 1 | AF36: =AD36 -> 4258782.229 | AG36: =AF36/$AF$41 -> 508.7694924
AC37: Non-parallelism | AD37: =(AD17)^2/AD15+AD18^2/AD16-(AD17+AD18)^2/(AD15+AD16) -> 1462.857143 | AE37: 1 | AF37: =AD37 -> 1462.857143 | AG37: =AF37/$AF$41 -> 0.1747581929 | AH37: =FINV(0.05,AE37,AE$41) -> 4.747225347
AC38: Non-linearity (s) | AD38: =AD19-AD17^2/AD15 -> 20909.74286 | AE38: =AD3-2 -> 4 | AF38: =AD38/AE38 -> 5227.435714 | AG38: =AF38/$AF$41 -> 0.6244883331 | AH38: =FINV(0.05,AE38,AE$41) -> 3.259166727
AC39: Non-linearity (t) | AD39: =AD20-AD18^2/AD16 -> 21266.8381 | AE39: =AD4-2 -> 4 | AF39: =AD39/AE39 -> 5316.709524 | AG39: =AF39/$AF$41 -> 0.6351533045 | AH39: =FINV(0.05,AE39,AE$41) -> 3.259166727
K41: 5 | AC41: Residual Error | AD41: =AD43-AD35-AD36-AD37-AD38-AD39 -> 100449 | AE41: =AE43-AE35-AE36-AE37-AE38-AE39 -> 12 | AF41: =AD41/AE41 -> 8370.75
AC43: Total | AD43: =SUM(AL17:AL32)-(AD7+AD8)^2/(AD5+AD6) -> 5051001.333 | AE43: =(AD6+AD5)-1 -> 23
AC45: Slope standard | AD45: =AD17/AD15 -> -804.1913357
AC46: Intercept standard | AD46: =AD13-AD45*AD11 -> -592.4056214
AC48: Slope test | AD48: =AD18/AD16 -> -834.5632497
AC49: Intercept test | AD49: =AD14-AD48*AD12 -> -316.9680116
AD51: Limits
AC52: Relative potency | AD52: Upper | AE52: Lower
AC53: =10^AD28 -> 0.3970839958 | AD53: =10^AD30 -> 0.5038292483 | AE53: =10^AD29 -> 0.3075568421
AC54: Potency | AD54: =$AD$53*$N$19 -> 6.045950979 | AE54: =$AE$53*$N$19 -> 3.690682105
AC55: Deviation | AD55: =(AD53-AC53)/AC53 -> 0.2688228526 | AE55: =(AE53-AC53)/AC53 -> -0.225461501

Sheet Sample7
U1: V 1.0
D2: PLA tredecim V01Sep2018
AC3: aantal doses standaard | AD3: =COUNT(AW17:AW23)-COUNTIF(AW17:AW23,"=0") -> 6
D4: Sample | E4: l | F4: l | G4: l | H4: l | I4: l | J4: l | M4: Standard | N4: l | O4: l | P4: l | Q4: l | R4: l | S4: l | AC4: aantal doses test | AD4: =COUNT(AW26:AW32)-COUNTIF(AW26:AW32,"=0") -> 6
AC5: aantal responses standaard | AD5: =COUNTIF(AP17:AU23,">0") -> 12
D6: Dose | E6: Response | M6: Dose | N6: Respons | AC6: aantal responses test | AD6: =COUNTIF(AP26:AU32,">0") -> 12
E7: 1 | F7: 2 | G7: 3 | H7: 4 | I7: 5 | J7: 6 | N7: 1 | O7: 2 | P7: 3 | Q7: 4 | R7: 5 | S7: 6 | AC7: som responses standaard | AD7: =SUM(AP17:AU23) -> 9804
C8: 1 | D8: 0.003125 | E8: 1795 | F8: 1842 | L8: 1 | M8: 0.003125 | N8: 1425 | O8: 1516 | AC8: som responses test | AD8: =SUM(AP26:AU32) -> 13435
C9: 2 | D9: 0.00625 | E9: 1368 | F9: 1605 | L9: 2 | M9: 0.00625 | N9: 1177 | O9: 1188 | AC9: som Xsi | AD9: =SUM(AH17:AH23) -> -21.03089987
C10: 3 | D10: 0.0125 | E10: 1261 | F10: 1283 | L10: 3 | M10: 0.0125 | N10: 884 | O10: 900 | AC10: som Xti | AD10: =SUM(AH26:AH32) -> -21.03089987
C11: 4 | D11: 0.025 | E11: 924 | F11: 928 | L11: 4 | M11: 0.025 | N11: 590 | O11: 681 | AC11: XSm | AD11: =AD9/AD5 -> -1.752574989
C12: 5 | D12: 0.05 | E12: 685 | F12: 693 | L12: 5 | M12: 0.05 | N12: 461 | O12: 463 | AC12: XTm | AD12: =AD10/AD6 -> -1.752574989
C13: 6 | D13: 0.1 | E13: 508 | F13: 543 | L13: 6 | M13: 0.1 | N13: 253 | O13: 266 | AC13: Ysm | AD13: =AD7/AD5 -> 817
C14: 7 | L14: 7 | AC14: Ytm | AD14: =AD8/AD6 -> 1119.583333
AC15: SxxS: | AD15: =SUM(AI17:AI23) -> 3.17166704
AC16: SxxT: | AD16: =SUM(AI26:AI32) -> 3.17166704 | AF16: ni | AG16: ysi | AH16: Xsi | AI16: SxxSi | AJ16: SyySi | AK16: SxySi | AL16: yi^2 | AO16: Dose | AP16: Responses | AV16: Regression | AW16: Dose(log)
AC17: SxyS: | AD17: =SUM(AK17:AK23) -> -2550.627153 | AF17: =COUNTIF(AP17:AU17,">0") -> 2 | AG17: =SUM(AP17:AU17) -> 2941 | AH17: =AF17*AW17 -> -5.010299957 | AI17: =AF17*(AW17-$AD$11)^2 -> 1.132738229 | AJ17: =IF(AF17=0,0,+AF17*(AG17/AF17-$AD$13)^2) -> 854124.5 | AK17: =IF(AF17=0,0,+AF17*(AG17/AF17-$AD$13)*(AW17-$AD$11)) -> -983.6155108 | AL17: =AP17^2+AQ17^2+AR17^2+AS17^2+AT17^2+AU17^2 -> 4328881 | AN17: Standard | AO17: 0.003125 | AP17: 1425 | AQ17: 1516 | AV17: =IF(AO17>0,AW17*$AD$45+$AD$46,"") -> 1422.214286 | AW17: =IF(AO17>0,LOG(AO17),"") -> -2.505149978
D18: Sample: | E18: N0012-18-000007 | M18: Standard name: | N18: std | AC18: SxyT: | AD18: =SUM(AK26:AK32) -> -2770.529565 | AF18: =COUNTIF(AP18:AU18,">0") -> 2 | AG18: =SUM(AP18:AU18) -> 2365 | AH18: -4.408239965 | AI18: 0.4077857623 | AJ18: 267180.5 | AK18: -330.0793902 | AL18: =AP18^2+AQ18^2+AR18^2+AS18^2+AT18^2+AU18^2 -> 2796673 | AO18: 0.00625 | AP18: 1177 | AQ18: 1188 | AV18: 1180.128571 | AW18: -2.204119983
D19: Potency: | E19: =AC53*N19 -> 5.229649855 | F19: =O19 -> AE/mL | M19: Potency: | N19: 12 | O19: AE/mL | AC19: SyyS: | AD19: =SUM(AJ17:AJ23) -> 2072102 | AF19: 2 | AG19: 1784 | AH19: -3.806179974 | AI19: 0.04530952914 | AJ19: 11250 | AK19: -22.57724967 | AL19: 1591456 | AO19: 0.0125 | AP19: 884 | AQ19: 900 | AV19: 938.0428571 | AW19: -1.903089987
D20: CI: | E20: ="("&TEXT(MIN(AD54:AE54),"0.#0")&" - "&TEXT(MAX(AD54:AE54),"0.#0) ")&"= +/-" -> (4.50 - 6.04) = +/- | G20: =ABS((AD54-AE54)/(2*E19)) -> 0.1472150235 | AC20: SyyT: | AD20: =SUM(AJ26:AJ32) -> 2444309.417 | AF20: 2 | AG20: 1271 | AH20: -3.204119983 | AI20: 0.04530952914 | AJ20: 65884.5 | AK20: -54.63694421 | AL20: 811861 | AO20: 0.025 | AP20: 590 | AQ20: 681 | AV20: 695.9571429 | AW20: -1.602059991
N21: F-Ratio | O21: Limits | AC21: B: | AD21: =(AD17+AD18)/(AD15+AD16) -> -838.8580281 | AF21: 2 | AG21: 924 | AH21: -2.602059991 | AI21: 0.4077857623 | AJ21: 252050 | AK21: -320.5969454 | AL21: 426890 | AO21: 0.05 | AP21: 461 | AQ21: 463 | AV21: 453.8714286 | AW21: -1.301029996
D22: Date: | E22: 12/14/2018 | L22: Non-parallelism | N22: =AG37 -> 2.36751178 | O22: =AH37 -> 4.747225347 | AC22: t | AD22: =TINV(0.05,AE41) -> 2.17881283 | AF22: 2 | AG22: 519 | AH22: -2 | AI22: 1.132738229 | AJ22: 621612.5 | AK22: -839.1211129 | AL22: 134765 | AO22: 0.1 | AP22: 253 | AQ22: 266 | AV22: 211.7857143 | AW22: -1
D23: Sample name: | E23: N0012-18-000007 | L23: Non linearity (St) | N23: =AG38 -> 1.623448248 | O23: 3.259166727 | AC23: s | AD23: =SQRT(AF41) -> 56.7446767 | AF23: 0 | AG23: 0 | AH23: 0 | AI23: 0 | AJ23: 0 | AK23: 0 | AL23: 0
D24: Lot number: | E24: - | L24: Non linearity (Sa) | N24: 1.877613767 | O24: 3.259166727 | AC24: g | AD24: =AD22^2*AD23^2/(AD21^2*(AD15+AD16)) -> 0.003424487494
D25: Name technician: | E25: - | L25: Relative Slope | N25: =AD48/AD45 -> 1.086215036 | O25: 0.90-1.10 | AF25: mi | AG25: yti | AH25: Xti | AI25: SxxTi | AJ25: SyyTi | AK25: SxyTi | AL25: yi^2 | AV25: Regression | AW25: Dose(log)
AC26: var(P) | AD26: =(AD23^2/AD21^2)*((1/AD5+1/AD6)+(AD28-AD11+AD12)^2/(AD15+AD16)) -> 0.0008565018377 | AF26: =COUNTIF(AP26:AU26,">0") -> 2 | AG26: =SUM(AP26:AU26) -> 3637 | AH26: =AF26*AW26 -> -5.010299957 | AI26: =AF26*(AW26-$AD$12)^2 -> 1.132738229 | AJ26: =IF(AF26=0,0,+AF26*(AG26/AF26-$AD$14)^2) -> 976969.0139 | AK26: =IF(AF26=0,0,+AF26*(AG26/AF26-$AD$14)*(AW26-$AD$12)) -> -1051.974406 | AL26: =AP26^2+AQ26^2+AR26^2+AS26^2+AT26^2+AU26^2 -> 6614989 | AN26: Test sample | AO26: 0.003125 | AP26: 1795 | AQ26: 1842 | AV26: =IF(AO26>0,AW26*$AD$48+$AD$49,"") -> 1776.97619 | AW26: =IF(AO26>0,LOG(AO26),"") -> -2.505149978
D27: Italic or Bold = Delete point. Press button Recalculate | AC27: limit | AD27: =(AD23*AD22/AD21)*SQRT((1-AD24)*(1/AD6+1/AD5)+(AD28-AD11+AD12)^2/(AD15+AD16)) -> -0.06366795949 | AF27: =COUNTIF(AP27:AU27,">0") -> 2 | AG27: 2973 | AH27: -4.408239965 | AI27: 0.4077857623 | AJ27: 269255.6806 | AK27: -331.3587677 | AL27: 4447449 | AO27: 0.00625 | AP27: 1368 | AQ27: 1605 | AV27: 1514.019048 | AW27: -2.204119983
AC28: M | AD28: =$AD$11-$AD$12-(AD13-AD14)/AD21 -> -0.3607086339 | AF28: 2 | AG28: 2544 | AH28: -3.806179974 | AI28: 0.04530952914 | AJ28: 46461.68056 | AK28: -45.88198851 | AL28: 3236210 | AO28: 0.0125 | AP28: 1261 | AQ28: 1283 | AV28: 1251.061905 | AW28: -1.903089987
AC29: Ml | AD29: =$AD$11-$AD$12+($AD$28-$AD$11+$AD$12+$AD$27)/(1-$AD$24) -> -0.4258348595 | AF29: 2 | AG29: 1852 | AH29: -3.204119983 | AI29: 0.04530952914 | AJ29: 74949.01389 | AK29: -58.27438999 | AL29: 1714960 | AO29: 0.025 | AP29: 924 | AQ29: 928 | AV29: 988.1047619 | AW29: -1.602059991
AC30: Mu | AD30: =$AD$11-$AD$12+($AD$28-$AD$11+$AD$12-$AD$27)/(1-$AD$24) -> -0.2980613818 | AF30: 2 | AG30: 1378 | AH30: -2.602059991 | AI30: 0.4077857623 | AJ30: 370804.0139 | AK30: -388.8554969 | AL30: 949474 | AO30: 0.05 | AP30: 685 | AQ30: 693 | AV30: 725.147619 | AW30: -1.301029996
AF31: 2 | AG31: 1051 | AH31: -2 | AI31: 1.132738229 | AJ31: 705870.0139 | AK31: -894.1845163 | AL31: 552913 | AO31: 0.1 | AP31: 508 | AQ31: 543 | AV31: 462.1904762 | AW31: -1
AF32: 0 | AG32: 0 | AH32: 0 | AI32: 0 | AJ32: 0 | AK32: 0 | AL32: 0
AC34: Source of variation | AD34: S.S. | AE34: DF | AF34: M.S. | AG34: F RATIO | AH34: F 0.95
AC35: Preparations | AD35: =AD7^2/AD5+AD8^2/AD6-(AD7+AD8)^2/(AD5+AD6) -> 549340.0417 | AE35: 1 | AF35: =AD35 -> 549340.0417 | AG35: =AF35/$AF$41 -> 170.604705
AC36: Regression | AD36: =(AD17+AD18)^2/(AD15+AD16) -> 4463695.032 | AE36: 1 | AF36: =AD36 -> 4463695.032 | AG36: =AF36/$AF$41 -> 1386.258631
AC37: Non-parallelism | AD37: =(AD17)^2/AD15+AD18^2/AD16-(AD17+AD18)^2/(AD15+AD16) -> 7623.289286 | AE37: 1 | AF37: =AD37 -> 7623.289286 | AG37: =AF37/$AF$41 -> 2.36751178 | AH37: =FINV(0.05,AE37,AE$41) -> 4.747225347
AC38: Non-linearity (s) | AD38: =AD19-AD17^2/AD15 -> 20909.74286 | AE38: =AD3-2 -> 4 | AF38: =AD38/AE38 -> 5227.435714 | AG38: =AF38/$AF$41 -> 1.623448248 | AH38: =FINV(0.05,AE38,AE$41) -> 3.259166727
AC39: Non-linearity (t) | AD39: =AD20-AD18^2/AD16 -> 24183.35238 | AE39: =AD4-2 -> 4 | AF39: =AD39/AE39 -> 6045.838095 | AG39: =AF39/$AF$41 -> 1.877613767 | AH39: =FINV(0.05,AE39,AE$41) -> 3.259166727
K41: 5 | AC41: Residual Error | AD41: =AD43-AD35-AD36-AD37-AD38-AD39 -> 38639.5 | AE41: =AE43-AE35-AE36-AE37-AE38-AE39 -> 12 | AF41: =AD41/AE41 -> 3219.958333
AC43: Total | AD43: =SUM(AL17:AL32)-(AD7+AD8)^2/(AD5+AD6) -> 5104390.958 | AE43: =(AD6+AD5)-1 -> 23
AC45: Slope standard | AD45: =AD17/AD15 -> -804.1913357
AC46: Intercept standard | AD46: =AD13-AD45*AD11 -> -592.4056214
AC48: Slope test | AD48: =AD18/AD16 -> -873.5247206
AC49: Intercept test | AD49: =AD14-AD48*AD12 -> -411.3342444
AD51: Limits
AC52: Relative potency | AD52: Upper | AE52: Lower
AC53: =10^AD28 -> 0.4358041546 | AD53: =10^AD30 -> 0.5034294506 | AE53: =10^AD29 -> 0.3751156129
AC54: Potency | AD54: =$AD$53*$N$19 -> 6.041153407 | AE54: =$AE$53*$N$19 -> 4.501387354
AC55: Deviation | AD55: =(AD53-AC53)/AC53 -> 0.1551735918 | AE55: =(AE53-AC53)/AC53 -> -0.1392564552

Sheet Sample8
U1: V 1.0
D2: PLA tredecim V01Sep2018
AC3: aantal doses standaard | AD3: =COUNT(AW17:AW23)-COUNTIF(AW17:AW23,"=0") -> 0
D4: Sample | E4: l | F4: l | G4: l | H4: l | I4: l | J4: l | M4: Standard | N4: l | O4: l | P4: l | Q4: l | R4: l | S4: l | AC4: aantal doses test | AD4: =COUNT(AW26:AW32)-COUNTIF(AW26:AW32,"=0") -> 0
AC5: aantal responses standaard | AD5: =COUNTIF(AP17:AU23,">0") -> 0
D6: Dose | E6: Response | M6: Dose | N6: Respons | AC6: aantal responses test | AD6: =COUNTIF(AP26:AU32,">0") -> 0
E7: 1 | F7: 2 | G7: 3 | H7: 4 | I7: 5 | J7: 6 | N7: 1 | O7: 2 | P7: 3 | Q7: 4 | R7: 5 | S7: 6 | AC7: som responses standaard | AD7: =SUM(AP17:AU23) -> 0
C8: 1 | L8: 1 | AC8: som responses test | AD8: =SUM(AP26:AU32) -> 0
C9: 2 | L9: 2 | AC9: som Xsi | AD9: =SUM(AH17:AH23) -> 0
C10: 3 | L10: 3 | AC10: som Xti | AD10: =SUM(AH26:AH32) -> 0
C11: 4 | L11: 4 | AC11: XSm | AD11: =AD9/AD5 -> 
C12: 5 | L12: 5 | AC12: XTm | AD12: =AD10/AD6 -> 
C13: 6 | L13: 6 | AC13: Ysm | AD13: =AD7/AD5 -> 
C14: 7 | L14: 7 | AC14: Ytm | AD14: =AD8/AD6 -> 
AC15: SxxS: | AD15: =SUM(AI17:AI23) -> 
AC16: SxxT: | AD16: =SUM(AI26:AI32) ->  | AF16: ni | AG16: ysi | AH16: Xsi | AI16: SxxSi | AJ16: SyySi | AK16: SxySi | AL16: yi^2 | AO16: Dose | AP16: Responses | AV16: Regression | AW16: Dose(log)
AC17: SxyS: | AD17: =SUM(AK17:AK23) -> 0 | AF17: =COUNTIF(AP17:AU17,">0") -> 0 | AG17: =SUM(AP17:AU17) -> 0 | AH17: =AF17*AW17 -> 0 | AI17: =AF17*(AW17-$AD$11)^2 ->  | AJ17: =IF(AF17=0,0,+AF17*(AG17/AF17-$AD$13)^2) -> 0 | AK17: =IF(AF17=0,0,+AF17*(AG17/AF17-$AD$13)*(AW17-$AD$11)) -> 0 | AL17: =AP17^2+AQ17^2+AR17^2+AS17^2+AT17^2+AU17^2 -> 0 | AN17: Standard | AV17: =IF(AO17>0,AW17*$AD$45+$AD$46,"") ->  | AW17: =IF(AO17>0,LOG(AO17),"") -> 
D18: Sample: | M18: Standard name: | AC18: SxyT: | AD18: =SUM(AK26:AK32) -> 0 | AF18: =COUNTIF(AP18:AU18,">0") -> 0 | AG18: =SUM(AP18:AU18) -> 0 | AH18: 0 | AJ18: 0 | AK18: 0 | AL18: =AP18^2+AQ18^2+AR18^2+AS18^2+AT18^2+AU18^2 -> 0
D19: Potency: | E19: =AC53*N19 ->  | F19: =O19 -> 0 | M19: Potency: | AC19: SyyS: | AD19: =SUM(AJ17:AJ23) -> 0 | AF19: 0 | AG19: 0 | AH19: 0 | AJ19: 0 | AK19: 0 | AL19: 0
D20: CI: | E20: ="("&TEXT(MIN(AD54:AE54),"0.#0")&" - "&TEXT(MAX(AD54:AE54),"0.#0) ")&"= +/-" ->  | G20: =ABS((AD54-AE54)/(2*E19)) ->  | AC20: SyyT: | AD20: =SUM(AJ26:AJ32) -> 0 | AF20: 0 | AG20: 0 | AH20: 0 | AJ20: 0 | AK20: 0 | AL20: 0
N21: F-Ratio | O21: Limits | AC21: B: | AD21: =(AD17+AD18)/(AD15+AD16) ->  | AF21: 0 | AG21: 0 | AH21: 0 | AJ21: 0 | AK21: 0 | AL21: 0
D22: Date: | L22: Non-parallelism | N22: =AG37 ->  | O22: =AH37 ->  | AC22: t | AD22: =TINV(0.05,AE41) ->  | AF22: 0 | AG22: 0 | AH22: 0 | AJ22: 0 | AK22: 0 | AL22: 0
D23: Sample name: | L23: Non linearity (St) | N23: =AG38 ->  | AC23: s | AD23: =SQRT(AF41) ->  | AF23: 0 | AG23: 0 | AH23: 0 | AJ23: 0 | AK23: 0 | AL23: 0
L24: Non linearity (Sa) | AC24: g | AD24: =AD22^2*AD23^2/(AD21^2*(AD15+AD16)) -> 
L25: Relative Slope | N25: =AD48/AD45 ->  | O25: 0.90-1.10 | AF25: mi | AG25: yti | AH25: Xti | AI25: SxxTi | AJ25: SyyTi | AK25: SxyTi | AL25: yi^2 | AV25: Regression | AW25: Dose(log)
AC26: var(P) | AD26: =(AD23^2/AD21^2)*((1/AD5+1/AD6)+(AD28-AD11+AD12)^2/(AD15+AD16)) ->  | AF26: =COUNTIF(AP26:AU26,">0") -> 0 | AG26: =SUM(AP26:AU26) -> 0 | AH26: =AF26*AW26 -> 0 | AI26: =AF26*(AW26-$AD$12)^2 ->  | AJ26: =IF(AF26=0,0,+AF26*(AG26/AF26-$AD$14)^2) -> 0 | AK26: =IF(AF26=0,0,+AF26*(AG26/AF26-$AD$14)*(AW26-$AD$12)) -> 0 | AL26: =AP26^2+AQ26^2+AR26^2+AS26^2+AT26^2+AU26^2 -> 0 | AN26: Test sample | AV26: =IF(AO26>0,AW26*$AD$48+$AD$49,"") ->  | AW26: =IF(AO26>0,LOG(AO26),"") -> 
D27: Italic or Bold = Delete point. Press button Recalculate | AC27: limit | AD27: =(AD23*AD22/AD21)*SQRT((1-AD24)*(1/AD6+1/AD5)+(AD28-AD11+AD12)^2/(AD15+AD16)) ->  | AF27: =COUNTIF(AP27:AU27,">0") -> 0 | AG27: 0 | AH27: 0 | AJ27: 0 | AK27: 0 | AL27: 0
AC28: M | AD28: =$AD$11-$AD$12-(AD13-AD14)/AD21 ->  | AF28: 0 | AG28: 0 | AH28: 0 | AJ28: 0 | AK28: 0 | AL28: 0
AC29: Ml | AD29: =$AD$11-$AD$12+($AD$28-$AD$11+$AD$12+$AD$27)/(1-$AD$24) ->  | AF29: 0 | AG29: 0 | AH29: 0 | AJ29: 0 | AK29: 0 | AL29: 0
AC30: Mu | AD30: =$AD$11-$AD$12+($AD$28-$AD$11+$AD$12-$AD$27)/(1-$AD$24) ->  | AF30: 0 | AG30: 0 | AH30: 0 | AJ30: 0 | AK30: 0 | AL30: 0
AF31: 0 | AG31: 0 | AH31: 0 | AJ31: 0 | AK31: 0 | AL31: 0
AF32: 0 | AG32: 0 | AH32: 0 | AJ32: 0 | AK32: 0 | AL32: 0
AC34: Source of variation | AD34: S.S. | AE34: DF | AF34: M.S. | AG34: F RATIO | AH34: F 0.95
AC35: Preparations | AD35: =AD7^2/AD5+AD8^2/AD6-(AD7+AD8)^2/(AD5+AD6) ->  | AE35: 1 | AF35: =AD35 ->  | AG35: =AF35/$AF$41 -> 
AC36: Regression | AD36: =(AD17+AD18)^2/(AD15+AD16) ->  | AE36: 1 | AF36: =AD36 ->  | AG36: =AF36/$AF$41 -> 
AC37: Non-parallelism | AD37: =(AD17)^2/AD15+AD18^2/AD16-(AD17+AD18)^2/(AD15+AD16) ->  | AE37: 1 | AF37: =AD37 ->  | AG37: =AF37/$AF$41 ->  | AH37: =FINV(0.05,AE37,AE$41) -> 
AC38: Non-linearity (s) | AD38: =AD19-AD17^2/AD15 ->  | AE38: =AD3-2 -> -2 | AF38: =AD38/AE38 ->  | AG38: =AF38/$AF$41 ->  | AH38: =FINV(0.05,AE38,AE$41) -> 
AC39: Non-linearity (t) | AD39: =AD20-AD18^2/AD16 ->  | AE39: =AD4-2 -> -2 | AF39: =AD39/AE39 ->  | AG39: =AF39/$AF$41 ->  | AH39: =FINV(0.05,AE39,AE$41) -> 
K41: 5 | AC41: Residual Error | AD41: =AD43-AD35-AD36-AD37-AD38-AD39 ->  | AE41: =AE43-AE35-AE36-AE37-AE38-AE39 -> 0 | AF41: =AD41/AE41 -> 
AC43: Total | AD43: =SUM(AL17:AL32)-(AD7+AD8)^2/(AD5+AD6) ->  | AE43: =(AD6+AD5)-1 -> -1
AC45: Slope standard | AD45: =AD17/AD15 -> 
AC46: Intercept standard | AD46: =AD13-AD45*AD11 -> 
AC48: Slope test | AD48: =AD18/AD16 -> 
AC49: Intercept test | AD49: =AD14-AD48*AD12 -> 
AD51: Limits
AC52: Relative potency | AD52: Upper | AE52: Lower
AC53: =10^AD28 ->  | AD53: =10^AD30 ->  | AE53: =10^AD29 -> 
AC54: Potency | AD54: =$AD$53*$N$19 ->  | AE54: =$AE$53*$N$19 -> 
AC55: Deviation | AD55: =(AD53-AC53)/AC53 ->  | AE55: =(AE53-AC53)/AC53 -> 

Sheet Sample9
U1: V 1.0
D2: PLA tredecim V01Sep2018
AC3: aantal doses standaard | AD3: =COUNT(AW17:AW23)-COUNTIF(AW17:AW23,"=0") -> 0
D4: Sample | E4: l | F4: l | G4: l | H4: l | I4: l | J4: l | M4: Standard | N4: l | O4: l | P4: l | Q4: l | R4: l | S4: l | AC4: aantal doses test | AD4: =COUNT(AW26:AW32)-COUNTIF(AW26:AW32,"=0") -> 0
AC5: aantal responses standaard | AD5: =COUNTIF(AP17:AU23,">0") -> 0
D6: Dose | E6: Response | M6: Dose | N6: Respons | AC6: aantal responses test | AD6: =COUNTIF(AP26:AU32,">0") -> 0
E7: 1 | F7: 2 | G7: 3 | H7: 4 | I7: 5 | J7: 6 | N7: 1 | O7: 2 | P7: 3 | Q7: 4 | R7: 5 | S7: 6 | AC7: som responses standaard | AD7: =SUM(AP17:AU23) -> 0
C8: 1 | L8: 1 | AC8: som responses test | AD8: =SUM(AP26:AU32) -> 0
C9: 2 | L9: 2 | AC9: som Xsi | AD9: =SUM(AH17:AH23) -> 0
C10: 3 | L10: 3 | AC10: som Xti | AD10: =SUM(AH26:AH32) -> 0
C11: 4 | L11: 4 | AC11: XSm | AD11: =AD9/AD5 -> 
C12: 5 | L12: 5 | AC12: XTm | AD12: =AD10/AD6 -> 
C13: 6 | L13: 6 | AC13: Ysm | AD13: =AD7/AD5 -> 
C14: 7 | L14: 7 | AC14: Ytm | AD14: =AD8/AD6 -> 
AC15: SxxS: | AD15: =SUM(AI17:AI23) -> 
AC16: SxxT: | AD16: =SUM(AI26:AI32) ->  | AF16: ni | AG16: ysi | AH16: Xsi | AI16: SxxSi | AJ16: SyySi | AK16: SxySi | AL16: yi^2 | AO16: Dose | AP16: Responses | AV16: Regression | AW16: Dose(log)
AC17: SxyS: | AD17: =SUM(AK17:AK23) -> 0 | AF17: =COUNTIF(AP17:AU17,">0") -> 0 | AG17: =SUM(AP17:AU17) -> 0 | AH17: =AF17*AW17 -> 0 | AI17: =AF17*(AW17-$AD$11)^2 ->  | AJ17: =IF(AF17=0,0,+AF17*(AG17/AF17-$AD$13)^2) -> 0 | AK17: =IF(AF17=0,0,+AF17*(AG17/AF17-$AD$13)*(AW17-$AD$11)) -> 0 | AL17: =AP17^2+AQ17^2+AR17^2+AS17^2+AT17^2+AU17^2 -> 0 | AN17: Standard | AV17: =IF(AO17>0,AW17*$AD$45+$AD$46,"") ->  | AW17: =IF(AO17>0,LOG(AO17),"") -> 
D18: Sample: | M18: Standard name: | AC18: SxyT: | AD18: =SUM(AK26:AK32) -> 0 | AF18: =COUNTIF(AP18:AU18,">0") -> 0 | AG18: =SUM(AP18:AU18) -> 0 | AH18: 0 | AJ18: 0 | AK18: 0 | AL18: =AP18^2+AQ18^2+AR18^2+AS18^2+AT18^2+AU18^2 -> 0
D19: Potency: | E19: =AC53*N19 ->  | F19: =O19 -> 0 | M19: Potency: | AC19: SyyS: | AD19: =SUM(AJ17:AJ23) -> 0 | AF19: 0 | AG19: 0 | AH19: 0 | AJ19: 0 | AK19: 0 | AL19: 0
D20: CI: | E20: ="("&TEXT(MIN(AD54:AE54),"0.#0")&" - "&TEXT(MAX(AD54:AE54),"0.#0) ")&"= +/-" ->  | G20: =ABS((AD54-AE54)/(2*E19)) ->  | AC20: SyyT: | AD20: =SUM(AJ26:AJ32) -> 0 | AF20: 0 | AG20: 0 | AH20: 0 | AJ20: 0 | AK20: 0 | AL20: 0
N21: F-Ratio | O21: Limits | AC21: B: | AD21: =(AD17+AD18)/(AD15+AD16) ->  | AF21: 0 | AG21: 0 | AH21: 0 | AJ21: 0 | AK21: 0 | AL21: 0
D22: Date: | L22: Non-parallelism | N22: =AG37 ->  | O22: =AH37 ->  | AC22: t | AD22: =TINV(0.05,AE41) ->  | AF22: 0 | AG22: 0 | AH22: 0 | AJ22: 0 | AK22: 0 | AL22: 0
D23: Sample name: | L23: Non linearity (St) | N23: =AG38 ->  | AC23: s | AD23: =SQRT(AF41) ->  | AF23: 0 | AG23: 0 | AH23: 0 | AJ23: 0 | AK23: 0 | AL23: 0
L24: Non linearity (Sa) | AC24: g | AD24: =AD22^2*AD23^2/(AD21^2*(AD15+AD16)) -> 
L25: Relative Slope | N25: =AD48/AD45 ->  | O25: 0.90-1.10 | AF25: mi | AG25: yti | AH25: Xti | AI25: SxxTi | AJ25: SyyTi | AK25: SxyTi | AL25: yi^2 | AV25: Regression | AW25: Dose(log)
AC26: var(P) | AD26: =(AD23^2/AD21^2)*((1/AD5+1/AD6)+(AD28-AD11+AD12)^2/(AD15+AD16)) ->  | AF26: =COUNTIF(AP26:AU26,">0") -> 0 | AG26: =SUM(AP26:AU26) -> 0 | AH26: =AF26*AW26 -> 0 | AI26: =AF26*(AW26-$AD$12)^2 ->  | AJ26: =IF(AF26=0,0,+AF26*(AG26/AF26-$AD$14)^2) -> 0 | AK26: =IF(AF26=0,0,+AF26*(AG26/AF26-$AD$14)*(AW26-$AD$12)) -> 0 | AL26: =AP26^2+AQ26^2+AR26^2+AS26^2+AT26^2+AU26^2 -> 0 | AN26: Test sample | AV26: =IF(AO26>0,AW26*$AD$48+$AD$49,"") ->  | AW26: =IF(AO26>0,LOG(AO26),"") -> 
D27: Italic or Bold = Delete point. Press button Recalculate | AC27: limit | AD27: =(AD23*AD22/AD21)*SQRT((1-AD24)*(1/AD6+1/AD5)+(AD28-AD11+AD12)^2/(AD15+AD16)) ->  | AF27: =COUNTIF(AP27:AU27,">0") -> 0 | AG27: 0 | AH27: 0 | AJ27: 0 | AK27: 0 | AL27: 0
AC28: M | AD28: =$AD$11-$AD$12-(AD13-AD14)/AD21 ->  | AF28: 0 | AG28: 0 | AH28: 0 | AJ28: 0 | AK28: 0 | AL28: 0
AC29: Ml | AD29: =$AD$11-$AD$12+($AD$28-$AD$11+$AD$12+$AD$27)/(1-$AD$24) ->  | AF29: 0 | AG29: 0 | AH29: 0 | AJ29: 0 | AK29: 0 | AL29: 0
AC30: Mu | AD30: =$AD$11-$AD$12+($AD$28-$AD$11+$AD$12-$AD$27)/(1-$AD$24) ->  | AF30: 0 | AG30: 0 | AH30: 0 | AJ30: 0 | AK30: 0 | AL30: 0
AF31: 0 | AG31: 0 | AH31: 0 | AJ31: 0 | AK31: 0 | AL31: 0
AF32: 0 | AG32: 0 | AH32: 0 | AJ32: 0 | AK32: 0 | AL32: 0
AC34: Source of variation | AD34: S.S. | AE34: DF | AF34: M.S. | AG34: F RATIO | AH34: F 0.95
AC35: Preparations | AD35: =AD7^2/AD5+AD8^2/AD6-(AD7+AD8)^2/(AD5+AD6) ->  | AE35: 1 | AF35: =AD35 ->  | AG35: =AF35/$AF$41 -> 
AC36: Regression | AD36: =(AD17+AD18)^2/(AD15+AD16) ->  | AE36: 1 | AF36: =AD36 ->  | AG36: =AF36/$AF$41 -> 
AC37: Non-parallelism | AD37: =(AD17)^2/AD15+AD18^2/AD16-(AD17+AD18)^2/(AD15+AD16) ->  | AE37: 1 | AF37: =AD37 ->  | AG37: =AF37/$AF$41 ->  | AH37: =FINV(0.05,AE37,AE$41) -> 
AC38: Non-linearity (s) | AD38: =AD19-AD17^2/AD15 ->  | AE38: =AD3-2 -> -2 | AF38: =AD38/AE38 ->  | AG38: =AF38/$AF$41 ->  | AH38: =FINV(0.05,AE38,AE$41) -> 
AC39: Non-linearity (t) | AD39: =AD20-AD18^2/AD16 ->  | AE39: =AD4-2 -> -2 | AF39: =AD39/AE39 ->  | AG39: =AF39/$AF$41 ->  | AH39: =FINV(0.05,AE39,AE$41) -> 
K41: 5 | AC41: Residual Error | AD41: =AD43-AD35-AD36-AD37-AD38-AD39 ->  | AE41: =AE43-AE35-AE36-AE37-AE38-AE39 -> 0 | AF41: =AD41/AE41 -> 
AC43: Total | AD43: =SUM(AL17:AL32)-(AD7+AD8)^2/(AD5+AD6) ->  | AE43: =(AD6+AD5)-1 -> -1
AC45: Slope standard | AD45: =AD17/AD15 -> 
AC46: Intercept standard | AD46: =AD13-AD45*AD11 -> 
AC48: Slope test | AD48: =AD18/AD16 -> 
AC49: Intercept test | AD49: =AD14-AD48*AD12 -> 
AD51: Limits
AC52: Relative potency | AD52: Upper | AE52: Lower
AC53: =10^AD28 ->  | AD53: =10^AD30 ->  | AE53: =10^AD29 -> 
AC54: Potency | AD54: =$AD$53*$N$19 ->  | AE54: =$AE$53*$N$19 -> 
AC55: Deviation | AD55: =(AD53-AC53)/AC53 ->  | AE55: =(AE53-AC53)/AC53 -> 

Sheet Sample10
U1: V 1.0
D2: PLA tredecim V01Sep2018
AC3: aantal doses standaard | AD3: =COUNT(AW17:AW23)-COUNTIF(AW17:AW23,"=0") -> 0
D4: Sample | E4: l | F4: l | G4: l | H4: l | I4: l | J4: l | M4: Standard | N4: l | O4: l | P4: l | Q4: l | R4: l | S4: l | AC4: aantal doses test | AD4: =COUNT(AW26:AW32)-COUNTIF(AW26:AW32,"=0") -> 0
AC5: aantal responses standaard | AD5: =COUNTIF(AP17:AU23,">0") -> 0
D6: Dose | E6: Response | M6: Dose | N6: Respons | AC6: aantal responses test | AD6: =COUNTIF(AP26:AU32,">0") -> 0
E7: 1 | F7: 2 | G7: 3 | H7: 4 | I7: 5 | J7: 6 | N7: 1 | O7: 2 | P7: 3 | Q7: 4 | R7: 5 | S7: 6 | AC7: som responses standaard | AD7: =SUM(AP17:AU23) -> 0
C8: 1 | L8: 1 | AC8: som responses test | AD8: =SUM(AP26:AU32) -> 0
C9: 2 | L9: 2 | AC9: som Xsi | AD9: =SUM(AH17:AH23) -> 0
C10: 3 | L10: 3 | AC10: som Xti | AD10: =SUM(AH26:AH32) -> 0
C11: 4 | L11: 4 | AC11: XSm | AD11: =AD9/AD5 -> 
C12: 5 | L12: 5 | AC12: XTm | AD12: =AD10/AD6 -> 
C13: 6 | L13: 6 | AC13: Ysm | AD13: =AD7/AD5 -> 
C14: 7 | L14: 7 | AC14: Ytm | AD14: =AD8/AD6 -> 
AC15: SxxS: | AD15: =SUM(AI17:AI23) -> 
AC16: SxxT: | AD16: =SUM(AI26:AI32) ->  | AF16: ni | AG16: ysi | AH16: Xsi | AI16: SxxSi | AJ16: SyySi | AK16: SxySi | AL16: yi^2 | AO16: Dose | AP16: Responses | AV16: Regression | AW16: Dose(log)
AC17: SxyS: | AD17: =SUM(AK17:AK23) -> 0 | AF17: =COUNTIF(AP17:AU17,">0") -> 0 | AG17: =SUM(AP17:AU17) -> 0 | AH17: =AF17*AW17 -> 0 | AI17: =AF17*(AW17-$AD$11)^2 ->  | AJ17: =IF(AF17=0,0,+AF17*(AG17/AF17-$AD$13)^2) -> 0 | AK17: =IF(AF17=0,0,+AF17*(AG17/AF17-$AD$13)*(AW17-$AD$11)) -> 0 | AL17: =AP17^2+AQ17^2+AR17^2+AS17^2+AT17^2+AU17^2 -> 0 | AN17: Standard | AV17: =IF(AO17>0,AW17*$AD$45+$AD$46,"") ->  | AW17: =IF(AO17>0,LOG(AO17),"") -> 
D18: Sample: | M18: Standard name: | AC18: SxyT: | AD18: =SUM(AK26:AK32) -> 0 | AF18: =COUNTIF(AP18:AU18,">0") -> 0 | AG18: =SUM(AP18:AU18) -> 0 | AH18: 0 | AJ18: 0 | AK18: 0 | AL18: =AP18^2+AQ18^2+AR18^2+AS18^2+AT18^2+AU18^2 -> 0
D19: Potency: | E19: =AC53*N19 ->  | F19: =O19 -> 0 | M19: Potency: | AC19: SyyS: | AD19: =SUM(AJ17:AJ23) -> 0 | AF19: 0 | AG19: 0 | AH19: 0 | AJ19: 0 | AK19: 0 | AL19: 0
D20: CI: | E20: ="("&TEXT(MIN(AD54:AE54),"0.#0")&" - "&TEXT(MAX(AD54:AE54),"0.#0) ")&"= +/-" ->  | G20: =ABS((AD54-AE54)/(2*E19)) ->  | AC20: SyyT: | AD20: =SUM(AJ26:AJ32) -> 0 | AF20: 0 | AG20: 0 | AH20: 0 | AJ20: 0 | AK20: 0 | AL20: 0
N21: F-Ratio | O21: Limits | AC21: B: | AD21: =(AD17+AD18)/(AD15+AD16) ->  | AF21: 0 | AG21: 0 | AH21: 0 | AJ21: 0 | AK21: 0 | AL21: 0
D22: Date: | L22: Non-parallelism | N22: =AG37 ->  | O22: =AH37 ->  | AC22: t | AD22: =TINV(0.05,AE41) ->  | AF22: 0 | AG22: 0 | AH22: 0 | AJ22: 0 | AK22: 0 | AL22: 0
D23: Sample name: | L23: Non linearity (St) | N23: =AG38 ->  | AC23: s | AD23: =SQRT(AF41) ->  | AF23: 0 | AG23: 0 | AH23: 0 | AJ23: 0 | AK23: 0 | AL23: 0
L24: Non linearity (Sa) | AC24: g | AD24: =AD22^2*AD23^2/(AD21^2*(AD15+AD16)) -> 
L25: Relative Slope | N25: =AD48/AD45 ->  | O25: 0.90-1.10 | AF25: mi | AG25: yti | AH25: Xti | AI25: SxxTi | AJ25: SyyTi | AK25: SxyTi | AL25: yi^2 | AV25: Regression | AW25: Dose(log)
AC26: var(P) | AD26: =(AD23^2/AD21^2)*((1/AD5+1/AD6)+(AD28-AD11+AD12)^2/(AD15+AD16)) ->  | AF26: =COUNTIF(AP26:AU26,">0") -> 0 | AG26: =SUM(AP26:AU26) -> 0 | AH26: =AF26*AW26 -> 0 | AI26: =AF26*(AW26-$AD$12)^2 ->  | AJ26: =IF(AF26=0,0,+AF26*(AG26/AF26-$AD$14)^2) -> 0 | AK26: =IF(AF26=0,0,+AF26*(AG26/AF26-$AD$14)*(AW26-$AD$12)) -> 0 | AL26: =AP26^2+AQ26^2+AR26^2+AS26^2+AT26^2+AU26^2 -> 0 | AN26: Test sample | AV26: =IF(AO26>0,AW26*$AD$48+$AD$49,"") ->  | AW26: =IF(AO26>0,LOG(AO26),"") -> 
D27: Italic or Bold = Delete point. Press button Recalculate | AC27: limit | AD27: =(AD23*AD22/AD21)*SQRT((1-AD24)*(1/AD6+1/AD5)+(AD28-AD11+AD12)^2/(AD15+AD16)) ->  | AF27: =COUNTIF(AP27:AU27,">0") -> 0 | AG27: 0 | AH27: 0 | AJ27: 0 | AK27: 0 | AL27: 0
AC28: M | AD28: =$AD$11-$AD$12-(AD13-AD14)/AD21 ->  | AF28: 0 | AG28: 0 | AH28: 0 | AJ28: 0 | AK28: 0 | AL28: 0
AC29: Ml | AD29: =$AD$11-$AD$12+($AD$28-$AD$11+$AD$12+$AD$27)/(1-$AD$24) ->  | AF29: 0 | AG29: 0 | AH29: 0 | AJ29: 0 | AK29: 0 | AL29: 0
AC30: Mu | AD30: =$AD$11-$AD$12+($AD$28-$AD$11+$AD$12-$AD$27)/(1-$AD$24) ->  | AF30: 0 | AG30: 0 | AH30: 0 | AJ30: 0 | AK30: 0 | AL30: 0
AF31: 0 | AG31: 0 | AH31: 0 | AJ31: 0 | AK31: 0 | AL31: 0
AF32: 0 | AG32: 0 | AH32: 0 | AJ32: 0 | AK32: 0 | AL32: 0
AC34: Source of variation | AD34: S.S. | AE34: DF | AF34: M.S. | AG34: F RATIO | AH34: F 0.95
AC35: Preparations | AD35: =AD7^2/AD5+AD8^2/AD6-(AD7+AD8)^2/(AD5+AD6) ->  | AE35: 1 | AF35: =AD35 ->  | AG35: =AF35/$AF$41 -> 
AC36: Regression | AD36: =(AD17+AD18)^2/(AD15+AD16) ->  | AE36: 1 | AF36: =AD36 ->  | AG36: =AF36/$AF$41 -> 
AC37: Non-parallelism | AD37: =(AD17)^2/AD15+AD18^2/AD16-(AD17+AD18)^2/(AD15+AD16) ->  | AE37: 1 | AF37: =AD37 ->  | AG37: =AF37/$AF$41 ->  | AH37: =FINV(0.05,AE37,AE$41) -> 
AC38: Non-linearity (s) | AD38: =AD19-AD17^2/AD15 ->  | AE38: =AD3-2 -> -2 | AF38: =AD38/AE38 ->  | AG38: =AF38/$AF$41 ->  | AH38: =FINV(0.05,AE38,AE$41) -> 
AC39: Non-linearity (t) | AD39: =AD20-AD18^2/AD16 ->  | AE39: =AD4-2 -> -2 | AF39: =AD39/AE39 ->  | AG39: =AF39/$AF$41 ->  | AH39: =FINV(0.05,AE39,AE$41) -> 
K41: 5 | AC41: Residual Error | AD41: =AD43-AD35-AD36-AD37-AD38-AD39 ->  | AE41: =AE43-AE35-AE36-AE37-AE38-AE39 -> 0 | AF41: =AD41/AE41 -> 
AC43: Total | AD43: =SUM(AL17:AL32)-(AD7+AD8)^2/(AD5+AD6) ->  | AE43: =(AD6+AD5)-1 -> -1
AC45: Slope standard | AD45: =AD17/AD15 -> 
AC46: Intercept standard | AD46: =AD13-AD45*AD11 -> 
AC48: Slope test | AD48: =AD18/AD16 -> 
AC49: Intercept test | AD49: =AD14-AD48*AD12 -> 
AD51: Limits
AC52: Relative potency | AD52: Upper | AE52: Lower
AC53: =10^AD28 ->  | AD53: =10^AD30 ->  | AE53: =10^AD29 -> 
AC54: Potency | AD54: =$AD$53*$N$19 ->  | AE54: =$AE$53*$N$19 -> 
AC55: Deviation | AD55: =(AD53-AC53)/AC53 ->  | AE55: =(AE53-AC53)/AC53 -> 

Sheet Sample11
U1: V 1.0
D2: PLA tredecim V01Sep2018
AC3: aantal doses standaard | AD3: =COUNT(AW17:AW23)-COUNTIF(AW17:AW23,"=0") -> 0
D4: Sample | E4: l | F4: l | G4: l | H4: l | I4: l | J4: l | M4: Standard | N4: l | O4: l | P4: l | Q4: l | R4: l | S4: l | AC4: aantal doses test | AD4: =COUNT(AW26:AW32)-COUNTIF(AW26:AW32,"=0") -> 0
AC5: aantal responses standaard | AD5: =COUNTIF(AP17:AU23,">0") -> 0
D6: Dose | E6: Response | M6: Dose | N6: Respons | AC6: aantal responses test | AD6: =COUNTIF(AP26:AU32,">0") -> 0
E7: 1 | F7: 2 | G7: 3 | H7: 4 | I7: 5 | J7: 6 | N7: 1 | O7: 2 | P7: 3 | Q7: 4 | R7: 5 | S7: 6 | AC7: som responses standaard | AD7: =SUM(AP17:AU23) -> 0
C8: 1 | L8: 1 | AC8: som responses test | AD8: =SUM(AP26:AU32) -> 0
C9: 2 | L9: 2 | AC9: som Xsi | AD9: =SUM(AH17:AH23) -> 0
C10: 3 | L10: 3 | AC10: som Xti | AD10: =SUM(AH26:AH32) -> 0
C11: 4 | L11: 4 | AC11: XSm | AD11: =AD9/AD5 -> 
C12: 5 | L12: 5 | AC12: XTm | AD12: =AD10/AD6 -> 
C13: 6 | L13: 6 | AC13: Ysm | AD13: =AD7/AD5 -> 
C14: 7 | L14: 7 | AC14: Ytm | AD14: =AD8/AD6 -> 
AC15: SxxS: | AD15: =SUM(AI17:AI23) -> 
AC16: SxxT: | AD16: =SUM(AI26:AI32) ->  | AF16: ni | AG16: ysi | AH16: Xsi | AI16: SxxSi | AJ16: SyySi | AK16: SxySi | AL16: yi^2 | AO16: Dose | AP16: Responses | AV16: Regression | AW16: Dose(log)
AC17: SxyS: | AD17: =SUM(AK17:AK23) -> 0 | AF17: =COUNTIF(AP17:AU17,">0") -> 0 | AG17: =SUM(AP17:AU17) -> 0 | AH17: =AF17*AW17 -> 0 | AI17: =AF17*(AW17-$AD$11)^2 ->  | AJ17: =IF(AF17=0,0,+AF17*(AG17/AF17-$AD$13)^2) -> 0 | AK17: =IF(AF17=0,0,+AF17*(AG17/AF17-$AD$13)*(AW17-$AD$11)) -> 0 | AL17: =AP17^2+AQ17^2+AR17^2+AS17^2+AT17^2+AU17^2 -> 0 | AN17: Standard | AV17: =IF(AO17>0,AW17*$AD$45+$AD$46,"") ->  | AW17: =IF(AO17>0,LOG(AO17),"") -> 
D18: Sample: | M18: Standard name: | AC18: SxyT: | AD18: =SUM(AK26:AK32) -> 0 | AF18: =COUNTIF(AP18:AU18,">0") -> 0 | AG18: =SUM(AP18:AU18) -> 0 | AH18: 0 | AJ18: 0 | AK18: 0 | AL18: =AP18^2+AQ18^2+AR18^2+AS18^2+AT18^2+AU18^2 -> 0
D19: Potency: | E19: =AC53*N19 ->  | F19: =O19 -> 0 | M19: Potency: | AC19: SyyS: | AD19: =SUM(AJ17:AJ23) -> 0 | AF19: 0 | AG19: 0 | AH19: 0 | AJ19: 0 | AK19: 0 | AL19: 0
D20: CI: | E20: ="("&TEXT(MIN(AD54:AE54),"0.#0")&" - "&TEXT(MAX(AD54:AE54),"0.#0) ")&"= +/-" ->  | G20: =ABS((AD54-AE54)/(2*E19)) ->  | AC20: SyyT: | AD20: =SUM(AJ26:AJ32) -> 0 | AF20: 0 | AG20: 0 | AH20: 0 | AJ20: 0 | AK20: 0 | AL20: 0
N21: F-Ratio | O21: Limits | AC21: B: | AD21: =(AD17+AD18)/(AD15+AD16) ->  | AF21: 0 | AG21: 0 | AH21: 0 | AJ21: 0 | AK21: 0 | AL21: 0
D22: Date: | L22: Non-parallelism | N22: =AG37 ->  | O22: =AH37 ->  | AC22: t | AD22: =TINV(0.05,AE41) ->  | AF22: 0 | AG22: 0 | AH22: 0 | AJ22: 0 | AK22: 0 | AL22: 0
D23: Sample name: | L23: Non linearity (St) | N23: =AG38 ->  | AC23: s | AD23: =SQRT(AF41) ->  | AF23: 0 | AG23: 0 | AH23: 0 | AJ23: 0 | AK23: 0 | AL23: 0
L24: Non linearity (Sa) | AC24: g | AD24: =AD22^2*AD23^2/(AD21^2*(AD15+AD16)) -> 
L25: Relative Slope | N25: =AD48/AD45 ->  | O25: 0.90-1.10 | AF25: mi | AG25: yti | AH25: Xti | AI25: SxxTi | AJ25: SyyTi | AK25: SxyTi | AL25: yi^2 | AV25: Regression | AW25: Dose(log)
AC26: var(P) | AD26: =(AD23^2/AD21^2)*((1/AD5+1/AD6)+(AD28-AD11+AD12)^2/(AD15+AD16)) ->  | AF26: =COUNTIF(AP26:AU26,">0") -> 0 | AG26: =SUM(AP26:AU26) -> 0 | AH26: =AF26*AW26 -> 0 | AI26: =AF26*(AW26-$AD$12)^2 ->  | AJ26: =IF(AF26=0,0,+AF26*(AG26/AF26-$AD$14)^2) -> 0 | AK26: =IF(AF26=0,0,+AF26*(AG26/AF26-$AD$14)*(AW26-$AD$12)) -> 0 | AL26: =AP26^2+AQ26^2+AR26^2+AS26^2+AT26^2+AU26^2 -> 0 | AN26: Test sample | AV26: =IF(AO26>0,AW26*$AD$48+$AD$49,"") ->  | AW26: =IF(AO26>0,LOG(AO26),"") -> 
D27: Italic or Bold = Delete point. Press button Recalculate | AC27: limit | AD27: =(AD23*AD22/AD21)*SQRT((1-AD24)*(1/AD6+1/AD5)+(AD28-AD11+AD12)^2/(AD15+AD16)) ->  | AF27: =COUNTIF(AP27:AU27,">0") -> 0 | AG27: 0 | AH27: 0 | AJ27: 0 | AK27: 0 | AL27: 0
AC28: M | AD28: =$AD$11-$AD$12-(AD13-AD14)/AD21 ->  | AF28: 0 | AG28: 0 | AH28: 0 | AJ28: 0 | AK28: 0 | AL28: 0
AC29: Ml | AD29: =$AD$11-$AD$12+($AD$28-$AD$11+$AD$12+$AD$27)/(1-$AD$24) ->  | AF29: 0 | AG29: 0 | AH29: 0 | AJ29: 0 | AK29: 0 | AL29: 0
AC30: Mu | AD30: =$AD$11-$AD$12+($AD$28-$AD$11+$AD$12-$AD$27)/(1-$AD$24) ->  | AF30: 0 | AG30: 0 | AH30: 0 | AJ30: 0 | AK30: 0 | AL30: 0
AF31: 0 | AG31: 0 | AH31: 0 | AJ31: 0 | AK31: 0 | AL31: 0
AF32: 0 | AG32: 0 | AH32: 0 | AJ32: 0 | AK32: 0 | AL32: 0
AC34: Source of variation | AD34: S.S. | AE34: DF | AF34: M.S. | AG34: F RATIO | AH34: F 0.95
AC35: Preparations | AD35: =AD7^2/AD5+AD8^2/AD6-(AD7+AD8)^2/(AD5+AD6) ->  | AE35: 1 | AF35: =AD35 ->  | AG35: =AF35/$AF$41 -> 
AC36: Regression | AD36: =(AD17+AD18)^2/(AD15+AD16) ->  | AE36: 1 | AF36: =AD36 ->  | AG36: =AF36/$AF$41 -> 
AC37: Non-parallelism | AD37: =(AD17)^2/AD15+AD18^2/AD16-(AD17+AD18)^2/(AD15+AD16) ->  | AE37: 1 | AF37: =AD37 ->  | AG37: =AF37/$AF$41 ->  | AH37: =FINV(0.05,AE37,AE$41) -> 
AC38: Non-linearity (s) | AD38: =AD19-AD17^2/AD15 ->  | AE38: =AD3-2 -> -2 | AF38: =AD38/AE38 ->  | AG38: =AF38/$AF$41 ->  | AH38: =FINV(0.05,AE38,AE$41) -> 
AC39: Non-linearity (t) | AD39: =AD20-AD18^2/AD16 ->  | AE39: =AD4-2 -> -2 | AF39: =AD39/AE39 ->  | AG39: =AF39/$AF$41 ->  | AH39: =FINV(0.05,AE39,AE$41) -> 
K41: 5 | AC41: Residual Error | AD41: =AD43-AD35-AD36-AD37-AD38-AD39 ->  | AE41: =AE43-AE35-AE36-AE37-AE38-AE39 -> 0 | AF41: =AD41/AE41 -> 
AC43: Total | AD43: =SUM(AL17:AL32)-(AD7+AD8)^2/(AD5+AD6) ->  | AE43: =(AD6+AD5)-1 -> -1
AC45: Slope standard | AD45: =AD17/AD15 -> 
AC46: Intercept standard | AD46: =AD13-AD45*AD11 -> 
AC48: Slope test | AD48: =AD18/AD16 -> 
AC49: Intercept test | AD49: =AD14-AD48*AD12 -> 
AD51: Limits
AC52: Relative potency | AD52: Upper | AE52: Lower
AC53: =10^AD28 ->  | AD53: =10^AD30 ->  | AE53: =10^AD29 -> 
AC54: Potency | AD54: =$AD$53*$N$19 ->  | AE54: =$AE$53*$N$19 -> 
AC55: Deviation | AD55: =(AD53-AC53)/AC53 ->  | AE55: =(AE53-AC53)/AC53 -> 

Sheet Sample12
U1: V 1.0
D2: PLA tredecim V01Sep2018
AC3: aantal doses standaard | AD3: =COUNT(AW17:AW23)-COUNTIF(AW17:AW23,"=0") -> 0
D4: Sample | E4: l | F4: l | G4: l | H4: l | I4: l | J4: l | M4: Standard | N4: l | O4: l | P4: l | Q4: l | R4: l | S4: l | AC4: aantal doses test | AD4: =COUNT(AW26:AW32)-COUNTIF(AW26:AW32,"=0") -> 0
AC5: aantal responses standaard | AD5: =COUNTIF(AP17:AU23,">0") -> 0
D6: Dose | E6: Response | M6: Dose | N6: Respons | AC6: aantal responses test | AD6: =COUNTIF(AP26:AU32,">0") -> 0
E7: 1 | F7: 2 | G7: 3 | H7: 4 | I7: 5 | J7: 6 | N7: 1 | O7: 2 | P7: 3 | Q7: 4 | R7: 5 | S7: 6 | AC7: som responses standaard | AD7: =SUM(AP17:AU23) -> 0
C8: 1 | L8: 1 | AC8: som responses test | AD8: =SUM(AP26:AU32) -> 0
C9: 2 | L9: 2 | AC9: som Xsi | AD9: =SUM(AH17:AH23) -> 0
C10: 3 | L10: 3 | AC10: som Xti | AD10: =SUM(AH26:AH32) -> 0
C11: 4 | L11: 4 | AC11: XSm | AD11: =AD9/AD5 -> 
C12: 5 | L12: 5 | AC12: XTm | AD12: =AD10/AD6 -> 
C13: 6 | L13: 6 | AC13: Ysm | AD13: =AD7/AD5 -> 
C14: 7 | L14: 7 | AC14: Ytm | AD14: =AD8/AD6 -> 
AC15: SxxS: | AD15: =SUM(AI17:AI23) -> 
AC16: SxxT: | AD16: =SUM(AI26:AI32) ->  | AF16: ni | AG16: ysi | AH16: Xsi | AI16: SxxSi | AJ16: SyySi | AK16: SxySi | AL16: yi^2 | AO16: Dose | AP16: Responses | AV16: Regression | AW16: Dose(log)
AC17: SxyS: | AD17: =SUM(AK17:AK23) -> 0 | AF17: =COUNTIF(AP17:AU17,">0") -> 0 | AG17: =SUM(AP17:AU17) -> 0 | AH17: =AF17*AW17 -> 0 | AI17: =AF17*(AW17-$AD$11)^2 ->  | AJ17: =IF(AF17=0,0,+AF17*(AG17/AF17-$AD$13)^2) -> 0 | AK17: =IF(AF17=0,0,+AF17*(AG17/AF17-$AD$13)*(AW17-$AD$11)) -> 0 | AL17: =AP17^2+AQ17^2+AR17^2+AS17^2+AT17^2+AU17^2 -> 0 | AN17: Standard | AV17: =IF(AO17>0,AW17*$AD$45+$AD$46,"") ->  | AW17: =IF(AO17>0,LOG(AO17),"") -> 
D18: Sample: | M18: Standard name: | AC18: SxyT: | AD18: =SUM(AK26:AK32) -> 0 | AF18: =COUNTIF(AP18:AU18,">0") -> 0 | AG18: =SUM(AP18:AU18) -> 0 | AH18: 0 | AJ18: 0 | AK18: 0 | AL18: =AP18^2+AQ18^2+AR18^2+AS18^2+AT18^2+AU18^2 -> 0
D19: Potency: | E19: =AC53*N19 ->  | F19: =O19 -> 0 | M19: Potency: | AC19: SyyS: | AD19: =SUM(AJ17:AJ23) -> 0 | AF19: 0 | AG19: 0 | AH19: 0 | AJ19: 0 | AK19: 0 | AL19: 0
D20: CI: | E20: ="("&TEXT(MIN(AD54:AE54),"0.#0")&" - "&TEXT(MAX(AD54:AE54),"0.#0) ")&"= +/-" ->  | G20: =ABS((AD54-AE54)/(2*E19)) ->  | AC20: SyyT: | AD20: =SUM(AJ26:AJ32) -> 0 | AF20: 0 | AG20: 0 | AH20: 0 | AJ20: 0 | AK20: 0 | AL20: 0
N21: F-Ratio | O21: Limits | AC21: B: | AD21: =(AD17+AD18)/(AD15+AD16) ->  | AF21: 0 | AG21: 0 | AH21: 0 | AJ21: 0 | AK21: 0 | AL21: 0
D22: Date: | L22: Non-parallelism | N22: =AG37 ->  | O22: =AH37 ->  | AC22: t | AD22: =TINV(0.05,AE41) ->  | AF22: 0 | AG22: 0 | AH22: 0 | AJ22: 0 | AK22: 0 | AL22: 0
D23: Sample name: | L23: Non linearity (St) | N23: =AG38 ->  | AC23: s | AD23: =SQRT(AF41) ->  | AF23: 0 | AG23: 0 | AH23: 0 | AJ23: 0 | AK23: 0 | AL23: 0
L24: Non linearity (Sa) | AC24: g | AD24: =AD22^2*AD23^2/(AD21^2*(AD15+AD16)) -> 
L25: Relative Slope | N25: =AD48/AD45 ->  | O25: 0.90-1.10 | AF25: mi | AG25: yti | AH25: Xti | AI25: SxxTi | AJ25: SyyTi | AK25: SxyTi | AL25: yi^2 | AV25: Regression | AW25: Dose(log)
AC26: var(P) | AD26: =(AD23^2/AD21^2)*((1/AD5+1/AD6)+(AD28-AD11+AD12)^2/(AD15+AD16)) ->  | AF26: =COUNTIF(AP26:AU26,">0") -> 0 | AG26: =SUM(AP26:AU26) -> 0 | AH26: =AF26*AW26 -> 0 | AI26: =AF26*(AW26-$AD$12)^2 ->  | AJ26: =IF(AF26=0,0,+AF26*(AG26/AF26-$AD$14)^2) -> 0 | AK26: =IF(AF26=0,0,+AF26*(AG26/AF26-$AD$14)*(AW26-$AD$12)) -> 0 | AL26: =AP26^2+AQ26^2+AR26^2+AS26^2+AT26^2+AU26^2 -> 0 | AN26: Test sample | AV26: =IF(AO26>0,AW26*$AD$48+$AD$49,"") ->  | AW26: =IF(AO26>0,LOG(AO26),"") -> 
D27: Italic or Bold = Delete point. Press button Recalculate | AC27: limit | AD27: =(AD23*AD22/AD21)*SQRT((1-AD24)*(1/AD6+1/AD5)+(AD28-AD11+AD12)^2/(AD15+AD16)) ->  | AF27: =COUNTIF(AP27:AU27,">0") -> 0 | AG27: 0 | AH27: 0 | AJ27: 0 | AK27: 0 | AL27: 0
AC28: M | AD28: =$AD$11-$AD$12-(AD13-AD14)/AD21 ->  | AF28: 0 | AG28: 0 | AH28: 0 | AJ28: 0 | AK28: 0 | AL28: 0
AC29: Ml | AD29: =$AD$11-$AD$12+($AD$28-$AD$11+$AD$12+$AD$27)/(1-$AD$24) ->  | AF29: 0 | AG29: 0 | AH29: 0 | AJ29: 0 | AK29: 0 | AL29: 0
AC30: Mu | AD30: =$AD$11-$AD$12+($AD$28-$AD$11+$AD$12-$AD$27)/(1-$AD$24) ->  | AF30: 0 | AG30: 0 | AH30: 0 | AJ30: 0 | AK30: 0 | AL30: 0
AF31: 0 | AG31: 0 | AH31: 0 | AJ31: 0 | AK31: 0 | AL31: 0
AF32: 0 | AG32: 0 | AH32: 0 | AJ32: 0 | AK32: 0 | AL32: 0
AC34: Source of variation | AD34: S.S. | AE34: DF | AF34: M.S. | AG34: F RATIO | AH34: F 0.95
AC35: Preparations | AD35: =AD7^2/AD5+AD8^2/AD6-(AD7+AD8)^2/(AD5+AD6) ->  | AE35: 1 | AF35: =AD35 ->  | AG35: =AF35/$AF$41 -> 
AC36: Regression | AD36: =(AD17+AD18)^2/(AD15+AD16) ->  | AE36: 1 | AF36: =AD36 ->  | AG36: =AF36/$AF$41 -> 
AC37: Non-parallelism | AD37: =(AD17)^2/AD15+AD18^2/AD16-(AD17+AD18)^2/(AD15+AD16) ->  | AE37: 1 | AF37: =AD37 ->  | AG37: =AF37/$AF$41 ->  | AH37: =FINV(0.05,AE37,AE$41) -> 
AC38: Non-linearity (s) | AD38: =AD19-AD17^2/AD15 ->  | AE38: =AD3-2 -> -2 | AF38: =AD38/AE38 ->  | AG38: =AF38/$AF$41 ->  | AH38: =FINV(0.05,AE38,AE$41) -> 
AC39: Non-linearity (t) | AD39: =AD20-AD18^2/AD16 ->  | AE39: =AD4-2 -> -2 | AF39: =AD39/AE39 ->  | AG39: =AF39/$AF$41 ->  | AH39: =FINV(0.05,AE39,AE$41) -> 
K41: 5 | AC41: Residual Error | AD41: =AD43-AD35-AD36-AD37-AD38-AD39 ->  | AE41: =AE43-AE35-AE36-AE37-AE38-AE39 -> 0 | AF41: =AD41/AE41 -> 
AC43: Total | AD43: =SUM(AL17:AL32)-(AD7+AD8)^2/(AD5+AD6) ->  | AE43: =(AD6+AD5)-1 -> -1
AC45: Slope standard | AD45: =AD17/AD15 -> 
AC46: Intercept standard | AD46: =AD13-AD45*AD11 -> 
AC48: Slope test | AD48: =AD18/AD16 -> 
AC49: Intercept test | AD49: =AD14-AD48*AD12 -> 
AD51: Limits
AC52: Relative potency | AD52: Upper | AE52: Lower
AC53: =10^AD28 ->  | AD53: =10^AD30 ->  | AE53: =10^AD29 -> 
AC54: Potency | AD54: =$AD$53*$N$19 ->  | AE54: =$AE$53*$N$19 -> 
AC55: Deviation | AD55: =(AD53-AC53)/AC53 ->  | AE55: =(AE53-AC53)/AC53 -> 

Sheet Sample13
U1: V 1.0
D2: PLA tredecim V01Sep2018
AC3: aantal doses standaard | AD3: =COUNT(AW17:AW23)-COUNTIF(AW17:AW23,"=0") -> 0
D4: Sample | E4: l | F4: l | G4: l | H4: l | I4: l | J4: l | M4: Standard | N4: l | O4: l | P4: l | Q4: l | R4: l | S4: l | AC4: aantal doses test | AD4: =COUNT(AW26:AW32)-COUNTIF(AW26:AW32,"=0") -> 0
AC5: aantal responses standaard | AD5: =COUNTIF(AP17:AU23,">0") -> 0
D6: Dose | E6: Response | M6: Dose | N6: Respons | AC6: aantal responses test | AD6: =COUNTIF(AP26:AU32,">0") -> 0
E7: 1 | F7: 2 | G7: 3 | H7: 4 | I7: 5 | J7: 6 | N7: 1 | O7: 2 | P7: 3 | Q7: 4 | R7: 5 | S7: 6 | AC7: som responses standaard | AD7: =SUM(AP17:AU23) -> 0
C8: 1 | L8: 1 | AC8: som responses test | AD8: =SUM(AP26:AU32) -> 0
C9: 2 | L9: 2 | AC9: som Xsi | AD9: =SUM(AH17:AH23) -> 0
C10: 3 | L10: 3 | AC10: som Xti | AD10: =SUM(AH26:AH32) -> 0
C11: 4 | L11: 4 | AC11: XSm | AD11: =AD9/AD5 -> 
C12: 5 | L12: 5 | AC12: XTm | AD12: =AD10/AD6 -> 
C13: 6 | L13: 6 | AC13: Ysm | AD13: =AD7/AD5 -> 
C14: 7 | L14: 7 | AC14: Ytm | AD14: =AD8/AD6 -> 
AC15: SxxS: | AD15: =SUM(AI17:AI23) -> 
AC16: SxxT: | AD16: =SUM(AI26:AI32) ->  | AF16: ni | AG16: ysi | AH16: Xsi | AI16: SxxSi | AJ16: SyySi | AK16: SxySi | AL16: yi^2 | AO16: Dose | AP16: Responses | AV16: Regression | AW16: Dose(log)
AC17: SxyS: | AD17: =SUM(AK17:AK23) -> 0 | AF17: =COUNTIF(AP17:AU17,">0") -> 0 | AG17: =SUM(AP17:AU17) -> 0 | AH17: =AF17*AW17 -> 0 | AI17: =AF17*(AW17-$AD$11)^2 ->  | AJ17: =IF(AF17=0,0,+AF17*(AG17/AF17-$AD$13)^2) -> 0 | AK17: =IF(AF17=0,0,+AF17*(AG17/AF17-$AD$13)*(AW17-$AD$11)) -> 0 | AL17: =AP17^2+AQ17^2+AR17^2+AS17^2+AT17^2+AU17^2 -> 0 | AN17: Standard | AV17: =IF(AO17>0,AW17*$AD$45+$AD$46,"") ->  | AW17: =IF(AO17>0,LOG(AO17),"") -> 
D18: Sample: | M18: Standard name: | AC18: SxyT: | AD18: =SUM(AK26:AK32) -> 0 | AF18: =COUNTIF(AP18:AU18,">0") -> 0 | AG18: =SUM(AP18:AU18) -> 0 | AH18: 0 | AJ18: 0 | AK18: 0 | AL18: =AP18^2+AQ18^2+AR18^2+AS18^2+AT18^2+AU18^2 -> 0
D19: Potency: | E19: =AC53*N19 ->  | F19: =O19 -> 0 | M19: Potency: | AC19: SyyS: | AD19: =SUM(AJ17:AJ23) -> 0 | AF19: 0 | AG19: 0 | AH19: 0 | AJ19: 0 | AK19: 0 | AL19: 0
D20: CI: | E20: ="("&TEXT(MIN(AD54:AE54),"0.#0")&" - "&TEXT(MAX(AD54:AE54),"0.#0) ")&"= +/-" ->  | G20: =ABS((AD54-AE54)/(2*E19)) ->  | AC20: SyyT: | AD20: =SUM(AJ26:AJ32) -> 0 | AF20: 0 | AG20: 0 | AH20: 0 | AJ20: 0 | AK20: 0 | AL20: 0
N21: F-Ratio | O21: Limits | AC21: B: | AD21: =(AD17+AD18)/(AD15+AD16) ->  | AF21: 0 | AG21: 0 | AH21: 0 | AJ21: 0 | AK21: 0 | AL21: 0
D22: Date: | L22: Non-parallelism | N22: =AG37 ->  | O22: =AH37 ->  | AC22: t | AD22: =TINV(0.05,AE41) ->  | AF22: 0 | AG22: 0 | AH22: 0 | AJ22: 0 | AK22: 0 | AL22: 0
D23: Sample name: | L23: Non linearity (St) | N23: =AG38 ->  | AC23: s | AD23: =SQRT(AF41) ->  | AF23: 0 | AG23: 0 | AH23: 0 | AJ23: 0 | AK23: 0 | AL23: 0
L24: Non linearity (Sa) | AC24: g | AD24: =AD22^2*AD23^2/(AD21^2*(AD15+AD16)) -> 
L25: Relative Slope | N25: =AD48/AD45 ->  | O25: 0.90-1.10 | AF25: mi | AG25: yti | AH25: Xti | AI25: SxxTi | AJ25: SyyTi | AK25: SxyTi | AL25: yi^2 | AV25: Regression | AW25: Dose(log)
AC26: var(P) | AD26: =(AD23^2/AD21^2)*((1/AD5+1/AD6)+(AD28-AD11+AD12)^2/(AD15+AD16)) ->  | AF26: =COUNTIF(AP26:AU26,">0") -> 0 | AG26: =SUM(AP26:AU26) -> 0 | AH26: =AF26*AW26 -> 0 | AI26: =AF26*(AW26-$AD$12)^2 ->  | AJ26: =IF(AF26=0,0,+AF26*(AG26/AF26-$AD$14)^2) -> 0 | AK26: =IF(AF26=0,0,+AF26*(AG26/AF26-$AD$14)*(AW26-$AD$12)) -> 0 | AL26: =AP26^2+AQ26^2+AR26^2+AS26^2+AT26^2+AU26^2 -> 0 | AN26: Test sample | AV26: =IF(AO26>0,AW26*$AD$48+$AD$49,"") ->  | AW26: =IF(AO26>0,LOG(AO26),"") -> 
D27: Italic or Bold = Delete point. Press button Recalculate | AC27: limit | AD27: =(AD23*AD22/AD21)*SQRT((1-AD24)*(1/AD6+1/AD5)+(AD28-AD11+AD12)^2/(AD15+AD16)) ->  | AF27: =COUNTIF(AP27:AU27,">0") -> 0 | AG27: 0 | AH27: 0 | AJ27: 0 | AK27: 0 | AL27: 0
AC28: M | AD28: =$AD$11-$AD$12-(AD13-AD14)/AD21 ->  | AF28: 0 | AG28: 0 | AH28: 0 | AJ28: 0 | AK28: 0 | AL28: 0
AC29: Ml | AD29: =$AD$11-$AD$12+($AD$28-$AD$11+$AD$12+$AD$27)/(1-$AD$24) ->  | AF29: 0 | AG29: 0 | AH29: 0 | AJ29: 0 | AK29: 0 | AL29: 0
AC30: Mu | AD30: =$AD$11-$AD$12+($AD$28-$AD$11+$AD$12-$AD$27)/(1-$AD$24) ->  | AF30: 0 | AG30: 0 | AH30: 0 | AJ30: 0 | AK30: 0 | AL30: 0
AF31: 0 | AG31: 0 | AH31: 0 | AJ31: 0 | AK31: 0 | AL31: 0
AF32: 0 | AG32: 0 | AH32: 0 | AJ32: 0 | AK32: 0 | AL32: 0
AC34: Source of variation | AD34: S.S. | AE34: DF | AF34: M.S. | AG34: F RATIO | AH34: F 0.95
AC35: Preparations | AD35: =AD7^2/AD5+AD8^2/AD6-(AD7+AD8)^2/(AD5+AD6) ->  | AE35: 1 | AF35: =AD35 ->  | AG35: =AF35/$AF$41 -> 
AC36: Regression | AD36: =(AD17+AD18)^2/(AD15+AD16) ->  | AE36: 1 | AF36: =AD36 ->  | AG36: =AF36/$AF$41 -> 
AC37: Non-parallelism | AD37: =(AD17)^2/AD15+AD18^2/AD16-(AD17+AD18)^2/(AD15+AD16) ->  | AE37: 1 | AF37: =AD37 ->  | AG37: =AF37/$AF$41 ->  | AH37: =FINV(0.05,AE37,AE$41) -> 
AC38: Non-linearity (s) | AD38: =AD19-AD17^2/AD15 ->  | AE38: =AD3-2 -> -2 | AF38: =AD38/AE38 ->  | AG38: =AF38/$AF$41 ->  | AH38: =FINV(0.05,AE38,AE$41) -> 
AC39: Non-linearity (t) | AD39: =AD20-AD18^2/AD16 ->  | AE39: =AD4-2 -> -2 | AF39: =AD39/AE39 ->  | AG39: =AF39/$AF$41 ->  | AH39: =FINV(0.05,AE39,AE$41) -> 
K41: 5 | AC41: Residual Error | AD41: =AD43-AD35-AD36-AD37-AD38-AD39 ->  | AE41: =AE43-AE35-AE36-AE37-AE38-AE39 -> 0 | AF41: =AD41/AE41 -> 
AC43: Total | AD43: =SUM(AL17:AL32)-(AD7+AD8)^2/(AD5+AD6) ->  | AE43: =(AD6+AD5)-1 -> -1
AC45: Slope standard | AD45: =AD17/AD15 -> 
AC46: Intercept standard | AD46: =AD13-AD45*AD11 -> 
AC48: Slope test | AD48: =AD18/AD16 -> 
AC49: Intercept test | AD49: =AD14-AD48*AD12 -> 
AD51: Limits
AC52: Relative potency | AD52: Upper | AE52: Lower
AC53: =10^AD28 ->  | AD53: =10^AD30 ->  | AE53: =10^AD29 -> 
AC54: Potency | AD54: =$AD$53*$N$19 ->  | AE54: =$AE$53*$N$19 -> 
AC55: Deviation | AD55: =(AD53-AC53)/AC53 ->  | AE55: =(AE53-AC53)/AC53 -> 

Sheet Testset
A1: Absorbance matrix | Q1: If your data are in 8x12 format paste them here and press Transpose
B2: 1 | C2: 2 | D2: 3 | E2: 4 | F2: 5 | G2: 6 | H2: 7 | I2: 8 | J2: 9 | K2: 10 | L2: 11 | M2: 12 | Q2: A | R2: B | S2: C | T2: D | U2: E | V2: F | W2: G | X2: H
A3: A | B3: 259 | C3: 434 | D3: 645 | E3: 938 | F3: 1181 | G3: 1524 | H3: 534 | I3: 755 | J3: 1069 | K3: 1090 | L3: 1607 | M3: 1825 | P3: 1 | Q3: 259 | R3: 251 | S3: 250 | T3: 253 | U3: 273 | V3: 268 | W3: 266 | X3: 294
A4: B | B4: 251 | C4: 475 | D4: 628 | E4: 923 | F4: 1230 | G4: 1428 | H4: 479 | I4: 689 | J4: 968 | K4: 1326 | L4: 1505 | M4: 1969 | P4: 2 | Q4: 434 | R4: 475 | S4: 462 | T4: 461 | U4: 476 | V4: 469 | W4: 463 | X4: 511
A5: C | B5: 250 | C5: 462 | D5: 600 | E5: 953 | F5: 1283 | G5: 1454 | H5: 508 | I5: 693 | J5: 924 | K5: 1261 | L5: 1368 | M5: 1795 | P5: 3 | Q5: 645 | R5: 628 | S5: 600 | T5: 590 | U5: 674 | V5: 629 | W5: 681 | X5: 687
A6: D | B6: 253 | C6: 461 | D6: 590 | E6: 900 | F6: 1188 | G6: 1516 | H6: 554 | I6: 733 | J6: 989 | K6: 1126 | L6: 1541 | M6: 1568 | P6: 4 | Q6: 938 | R6: 923 | S6: 953 | T6: 900 | U6: 970 | V6: 947 | W6: 884 | X6: 956
A7: E | B7: 273 | C7: 476 | D7: 674 | E7: 970 | F7: 1278 | G7: 1555 | H7: 547 | I7: 682 | J7: 936 | K7: 1322 | L7: 1560 | M7: 1780 | P7: 5 | Q7: 1181 | R7: 1230 | S7: 1283 | T7: 1188 | U7: 1278 | V7: 1197 | W7: 1177 | X7: 1333
A8: F | B8: 268 | C8: 469 | D8: 629 | E8: 947 | F8: 1197 | G8: 1596 | H8: 556 | I8: 748 | J8: 1012 | K8: 1461 | L8: 1529 | M8: 1781 | P8: 6 | Q8: 1524 | R8: 1428 | S8: 1454 | T8: 1516 | U8: 1555 | V8: 1596 | W8: 1425 | X8: 1605
A9: G | B9: 266 | C9: 463 | D9: 681 | E9: 884 | F9: 1177 | G9: 1425 | H9: 530 | I9: 749 | J9: 1068 | K9: 1306 | L9: 1653 | M9: 1931 | P9: 7 | Q9: 534 | R9: 479 | S9: 508 | T9: 554 | U9: 547 | V9: 556 | W9: 530 | X9: 543
A10: H | B10: 294 | C10: 511 | D10: 687 | E10: 956 | F10: 1333 | G10: 1605 | H10: 543 | I10: 685 | J10: 928 | K10: 1283 | L10: 1605 | M10: 1842 | P10: 8 | Q10: 755 | R10: 689 | S10: 693 | T10: 733 | U10: 682 | V10: 748 | W10: 749 | X10: 685
P11: 9 | Q11: 1069 | R11: 968 | S11: 924 | T11: 989 | U11: 936 | V11: 1012 | W11: 1068 | X11: 928
P12: 10 | Q12: 1090 | R12: 1326 | S12: 1261 | T12: 1126 | U12: 1322 | V12: 1461 | W12: 1306 | X12: 1283
P13: 11 | Q13: 1607 | R13: 1505 | S13: 1368 | T13: 1541 | U13: 1560 | V13: 1529 | W13: 1653 | X13: 1605
A14: Enter here the positions of samples. Use S1 to S13 for maximal 13 samples and SS for the position of the standard. | P14: 12 | Q14: 1825 | R14: 1969 | S14: 1795 | T14: 1568 | U14: 1780 | V14: 1781 | W14: 1931 | X14: 1842
A15: Sample position matrix | E15: Use the abbreviations as entered in column P21 - P 34
B17: SS = standard | E17: S1 - S13 for samples | S17: Name / number | U17: Potency | V17: Unit
B18: 1 | C18: 2 | D18: 3 | E18: 4 | F18: 5 | G18: 6 | H18: 7 | I18: 8 | J18: 9 | K18: 10 | L18: 11 | M18: 12 | P18: SS | Q18: Name XXX | U18: 1 | V18: U/mL | X18: This name and potency wil appear on all sheets
A19: A | B19: S01 | C19: S01 | D19: S01 | E19: S01 | F19: S01 | G19: S01 | H19: S02 | I19: S02 | J19: S02 | K19: S02 | L19: S02 | M19: S02 | P19: S01 | Q19: Monster 1 | V19: U/mL
A20: B | B20: S02 | C20: S02 | D20: S02 | E20: S02 | F20: S02 | G20: S02 | H20: S01 | I20: S01 | J20: S01 | K20: S01 | L20: S01 | M20: S01 | P20: S02 | Q20: Monster 2 | V20: U/mL
A21: C | B21: S03 | C21: S03 | D21: S03 | E21: S03 | F21: S03 | G21: S03 | H21: SS | I21: SS | J21: SS | K21: SS | L21: SS | M21: SS | P21: S03 | Q21: Monster 3 | V21: U/mL
A22: D | B22: SS | C22: SS | D22: SS | E22: SS | F22: SS | G22: SS | H22: S03 | I22: S03 | J22: S03 | K22: S03 | L22: S03 | M22: S03 | P22: S04
A23: E | B23: S02 | C23: S02 | D23: S02 | E23: S02 | F23: S02 | G23: S02 | H23: S01 | I23: S01 | J23: S01 | K23: S01 | L23: S01 | M23: S01 | P23: S05
A24: F | B24: S01 | C24: S01 | D24: S01 | E24: S01 | F24: S01 | G24: S01 | H24: S02 | I24: S02 | J24: S02 | K24: S02 | L24: S02 | M24: S02 | P24: S06
A25: G | B25: SS | C25: SS | D25: SS | E25: SS | F25: SS | G25: SS | H25: S03 | I25: S03 | J25: S03 | K25: S03 | L25: S03 | M25: S03 | P25: S07
A26: H | B26: S03 | C26: S03 | D26: S03 | E26: S03 | F26: S03 | G26: S03 | H26: SS | I26: SS | J26: SS | K26: SS | L26: SS | M26: SS | P26: S08
P27: S09
P28: S10
P29: S11
A30: Enter here the dilutions of the samples (B36 - M43). Enter a dilution of 1/20 as =1/20 or 0.05 | P30: S12
A31: Dilution matrix | P31: S13
B32: 1 | C32: 2 | D32: 3 | E32: 4 | F32: 5 | G32: 6 | H32: 7 | I32: 8 | J32: 9 | K32: 10 | L32: 11 | M32: 12
A33: A | B33: 0.1 | C33: =1/20 -> 0.05 | D33: =C33/2 -> 0.025 | E33: 0.0125 | F33: 0.00625 | G33: 0.003125 | H33: 0.1 | I33: =H33/2 -> 0.05 | J33: 0.025 | K33: 0.0125 | L33: 0.00625 | M33: 0.003125 | P33: Date: | Q33: =TODAY() -> 2018-12-14 | X33: This date and the text below will appear on all sheets
A34: B | B34: 0.1 | C34: =1/20 -> 0.05 | D34: 0.025 | E34: 0.0125 | F34: 0.00625 | G34: 0.003125 | H34: 0.1 | I34: 0.05 | J34: 0.025 | K34: 0.0125 | L34: 0.00625 | M34: 0.003125 | P34: Lot number: | S34: - | X34: This tekst will appear in the Cell D24 and E24
A35: C | B35: 0.1 | C35: 0.05 | D35: 0.025 | E35: 0.0125 | F35: 0.00625 | G35: 0.003125 | H35: 0.1 | I35: 0.05 | J35: 0.025 | K35: 0.0125 | L35: 0.00625 | M35: 0.003125 | P35: Name technician: | S35: - | X35: This tekst will appear in the Cell D25 and E25
A36: D | B36: 0.1 | C36: 0.05 | D36: 0.025 | E36: 0.0125 | F36: 0.00625 | G36: 0.003125 | H36: 0.1 | I36: 0.05 | J36: 0.025 | K36: 0.0125 | L36: 0.00625 | M36: 0.003125
A37: E | B37: 0.1 | C37: 0.05 | D37: 0.025 | E37: 0.0125 | F37: 0.00625 | G37: 0.003125 | H37: 0.1 | I37: 0.05 | J37: 0.025 | K37: 0.0125 | L37: 0.00625 | M37: 0.003125
A38: F | B38: 0.1 | C38: 0.05 | D38: 0.025 | E38: 0.0125 | F38: 0.00625 | G38: 0.003125 | H38: 0.1 | I38: 0.05 | J38: 0.025 | K38: 0.0125 | L38: 0.00625 | M38: 0.003125
A39: G | B39: 0.1 | C39: 0.05 | D39: 0.025 | E39: 0.0125 | F39: 0.00625 | G39: 0.003125 | H39: 0.1 | I39: 0.05 | J39: 0.025 | K39: 0.0125 | L39: 0.00625 | M39: 0.003125
A40: H | B40: 0.1 | C40: 0.05 | D40: 0.025 | E40: 0.0125 | F40: 0.00625 | G40: 0.003125 | H40: 0.1 | I40: 0.05 | J40: 0.025 | K40: 0.0125 | L40: 0.00625 | M40: 0.003125
A44: Absorbance matrix | Q44: If your data are in 8x12 format, paste them here and press Transpose
B45: 1 | C45: 2 | D45: 3 | E45: 4 | F45: 5 | G45: 6 | H45: 7 | I45: 8 | J45: 9 | K45: 10 | L45: 11 | M45: 12 | Q45: A | R45: B | S45: C | T45: D | U45: E | V45: F | W45: G | X45: H
A46: A | B46: 259 | C46: 434 | D46: 645 | E46: 938 | F46: 1181 | G46: 1524 | H46: 534 | I46: 755 | J46: 1069 | K46: 1090 | L46: 1607 | M46: 1825 | P46: 1
A47: B | B47: 251 | C47: 475 | D47: 628 | E47: 923 | F47: 1230 | G47: 1428 | H47: 479 | I47: 689 | J47: 968 | K47: 1326 | L47: 1505 | M47: 1969 | P47: 2
A48: C | B48: 250 | C48: 462 | D48: 600 | E48: 953 | F48: 1283 | G48: 1454 | H48: 508 | I48: 693 | J48: 924 | K48: 1261 | L48: 1368 | M48: 1795 | P48: 3
A49: D | B49: 253 | C49: 461 | D49: 590 | E49: 900 | F49: 1188 | G49: 1516 | H49: 554 | I49: 733 | J49: 989 | K49: 1126 | L49: 1541 | M49: 1568 | P49: 4
A50: E | B50: 273 | C50: 476 | D50: 674 | E50: 970 | F50: 1278 | G50: 1555 | H50: 547 | I50: 682 | J50: 936 | K50: 1322 | L50: 1560 | M50: 1780 | P50: 5
A51: F | B51: 268 | C51: 469 | D51: 629 | E51: 947 | F51: 1197 | G51: 1596 | H51: 556 | I51: 748 | J51: 1012 | K51: 1461 | L51: 1529 | M51: 1781 | P51: 6
A52: G | B52: 266 | C52: 463 | D52: 681 | E52: 884 | F52: 1177 | G52: 1425 | H52: 530 | I52: 749 | J52: 1068 | K52: 1306 | L52: 1653 | M52: 1931 | P52: 7
A53: H | B53: 294 | C53: 511 | D53: 687 | E53: 956 | F53: 1333 | G53: 1605 | H53: 543 | I53: 685 | J53: 928 | K53: 1283 | L53: 1605 | M53: 1842 | P53: 8
P54: 9
P55: 10
P56: 11
A57: Enter here the positions of samples. Use S1 to S13 for maximal 13 samples and SS for the position of the standard. | P57: 12
A58: Sample position matrix | E58: Use the abbreviations as entered in column P21 - P 34
B60: SS = standard | E60: S1 - S13 for samples | S60: Name / number | U60: Potency | V60: Unit
B61: 1 | C61: 2 | D61: 3 | E61: 4 | F61: 5 | G61: 6 | H61: 7 | I61: 8 | J61: 9 | K61: 10 | L61: 11 | M61: 12 | P61: SS | Q61: std | U61: 1.05 | V61: U/mL
A62: A | B62: S01 | C62: S01 | D62: S01 | E62: S01 | F62: S01 | G62: S01 | H62: S05 | I62: S05 | J62: S05 | K62: S05 | L62: S05 | M62: S05 | P62: S01 | Q62: N0012-18-000001 | V62: U/mL
A63: B | B63: S02 | C63: S02 | D63: S02 | E63: S02 | F63: S02 | G63: S02 | H63: S04 | I63: S04 | J63: S04 | K63: S04 | L63: S04 | M63: S04 | P63: S02 | Q63: N0012-18-000002 | U63: 0.9657188795 | V63: U/mL
A64: C | B64: S03 | C64: S03 | D64: S03 | E64: S03 | F64: S03 | G64: S03 | H64: S07 | I64: S07 | J64: S07 | K64: S07 | L64: S07 | M64: S07 | P64: S03 | Q64: N0012-18-000003 | U64: 0.9177176733 | V64: U/mL
A65: D | B65: SS | C65: SS | D65: SS | E65: SS | F65: SS | G65: SS | H65: S06 | I65: S06 | J65: S06 | K65: S06 | L65: S06 | M65: S06 | P65: S04 | Q65: N0012-18-000004 | U65: 0.4355848637 | V65: U/mL
A66: E | B66: S02 | C66: S02 | D66: S02 | E66: S02 | F66: S02 | G66: S02 | H66: S04 | I66: S04 | J66: S04 | K66: S04 | L66: S04 | M66: S04 | P66: S05 | Q66: N0012-18-000005 | U66: 0.4001317833 | V66: U/mL
A67: F | B67: S01 | C67: S01 | D67: S01 | E67: S01 | F67: S01 | G67: S01 | H67: S05 | I67: S05 | J67: S05 | K67: S05 | L67: S05 | M67: S05 | P67: S06 | Q67: N0012-18-000006 | U67: 0.4169381956 | V67: U/mL
A68: G | B68: SS | C68: SS | D68: SS | E68: SS | F68: SS | G68: SS | H68: S06 | I68: S06 | J68: S06 | K68: S06 | L68: S06 | M68: S06 | P68: S07 | Q68: N0012-18-000007 | U68: 0.4575943623 | V68: U/mL
A69: H | B69: S03 | C69: S03 | D69: S03 | E69: S03 | F69: S03 | G69: S03 | H69: S07 | I69: S07 | J69: S07 | K69: S07 | L69: S07 | M69: S07 | P69: S08
P70: S09
P71: S10
P72: S11
A73: Enter here the dilutions of the samples (B36 - M43). Enter a dilution of 1/20 as =1/20 or 0.05 | P73: S12
A74: Dilution matrix | G74: Set "Format Cells" to General, Fraction or custom format ?/???? | P74: S13
B75: 1 | C75: 2 | D75: 3 | E75: 4 | F75: 5 | G75: 6 | H75: 7 | I75: 8 | J75: 9 | K75: 10 | L75: 11 | M75: 12
A76: A | B76: 0.1 | C76: =1/20 -> 0.05 | D76: =C76/2 -> 0.025 | E76: 0.0125 | F76: 0.00625 | G76: 0.003125 | H76: 0.1 | I76: =H76/2 -> 0.05 | J76: 0.025 | K76: 0.0125 | L76: 0.00625 | M76: 0.003125 | P76: Date: | Q76: =TODAY() -> 2018-12-14
A77: B | B77: 0.1 | C77: =1/20 -> 0.05 | D77: 0.025 | E77: 0.0125 | F77: 0.00625 | G77: 0.003125 | H77: 0.1 | I77: 0.05 | J77: 0.025 | K77: 0.0125 | L77: 0.00625 | M77: 0.003125 | P77: Lot number: | S77: -
A78: C | B78: 0.1 | C78: 0.05 | D78: 0.025 | E78: 0.0125 | F78: 0.00625 | G78: 0.003125 | H78: 0.1 | I78: 0.05 | J78: 0.025 | K78: 0.0125 | L78: 0.00625 | M78: 0.003125 | P78: Name technician: | S78: -
A79: D | B79: 0.1 | C79: 0.05 | D79: 0.025 | E79: 0.0125 | F79: 0.00625 | G79: 0.003125 | H79: 0.1 | I79: 0.05 | J79: 0.025 | K79: 0.0125 | L79: 0.00625 | M79: =L79/2 -> 0.003125
A80: E | B80: 0.1 | C80: 0.05 | D80: 0.025 | E80: 0.0125 | F80: 0.00625 | G80: 0.003125 | H80: 0.1 | I80: 0.05 | J80: 0.025 | K80: 0.0125 | L80: 0.00625 | M80: 0.003125
A81: F | B81: 0.1 | C81: 0.05 | D81: 0.025 | E81: 0.0125 | F81: 0.00625 | G81: 0.003125 | H81: 0.1 | I81: 0.05 | J81: 0.025 | K81: 0.0125 | L81: 0.00625 | M81: 0.003125
A82: G | B82: 0.1 | C82: 0.05 | D82: 0.025 | E82: 0.0125 | F82: 0.00625 | G82: 0.003125 | H82: 0.1 | I82: 0.05 | J82: 0.025 | K82: 0.0125 | L82: 0.00625 | M82: 0.003125
A83: H | B83: 0.1 | C83: 0.05 | D83: 0.025 | E83: 0.0125 | F83: 0.00625 | G83: 0.003125 | H83: 0.1 | I83: 0.05 | J83: 0.025 | K83: 0.0125 | L83: 0.00625 | M83: 0.003125
